Workbook

Sheet Base de données n°2
A2: JUILLET | AM2: =+A2 -> JUILLET | BU2: =+A2 -> JUILLET | DC2: =+A2 -> JUILLET | EH2: =+A2 -> JUILLET
A3: 2018 | AM3: =+A3 -> 2018 | BU3: =+A3 -> 2018 | DC3: =+AM3 -> 2018 | EH3: =+A3 -> 2018 | FS3: ECART avec la BQ | FT3: DATE DECADE | FU3: TYPE | FW3: MONTANT ANNONCE | FX3: ECART avec la BQ | FY3: DATE DECADE | FZ3: TYPE | GB3: CUMUL Ecarts au
A4: JOURS | B4: REGUL S/ JUIN | F4: 2018-07-01 | J4: 2018-07-02 | N4: 2018-07-03 | R4: 2018-07-04 | V4: 2018-07-05 | Z4: 2018-07-06 | AD4: 2018-07-07 | AH4: 2018-07-08 | AL4: TOTAL S1 | AM4: JOURS | AN4: 2018-07-09 | AR4: 2018-07-10 | AV4: 2018-07-11 | AZ4: 2018-07-12 | BD4: 2018-07-13 | BH4: 2018-07-14 | BL4: 2018-07-15 | BP4: 2018-07-16 | BT4: TOTAL S2 | BU4: JOURS | BV4: 2018-07-17 | BZ4: 2018-07-18 | CD4: 2018-07-19 | CH4: 2018-07-20 | CL4: 2018-07-21 | CP4: 2018-07-22 | CT4: 2018-07-23 | CX4: 2018-07-24 | DB4: TOTAL S3 | DC4: JOURS | DD4: 2018-07-25 | DH4: 2018-07-26 | DL4: 2018-07-27 | DP4: 2018-07-28 | DT4: 2018-07-29 | DX4: 2018-07-30 | EB4: 2018-07-31 | EF4: TOTAL S4 | EG4: TOTAL | GB4: =+(TODAY()) -> 2018-09-18
F5: =+F4 -> 2018-07-01 | G5: =+F4 -> 2018-07-01 | H5: =+F4 -> 2018-07-01 | I5: =+F4 -> 2018-07-01 | J5: =+J4 -> 2018-07-02 | K5: =+J4 -> 2018-07-02 | L5: =+J4 -> 2018-07-02 | M5: =+J4 -> 2018-07-02 | N5: =+N4 -> 2018-07-03 | O5: =+N4 -> 2018-07-03 | P5: =+N4 -> 2018-07-03 | Q5: =+N4 -> 2018-07-03 | R5: =+R4 -> 2018-07-04 | S5: =+R4 -> 2018-07-04 | T5: =+R4 -> 2018-07-04 | U5: =+R4 -> 2018-07-04 | V5: =+V4 -> 2018-07-05 | W5: =+V4 -> 2018-07-05 | X5: =+V4 -> 2018-07-05 | Y5: =+V4 -> 2018-07-05 | Z5: =+Z4 -> 2018-07-06
A6: AGENTS | B6: C.BLEUE | C6: C.B sans contact | D6: CHEQUES | E6: ESPECES | F6: C.BLEUE | G6: C.B sans contact | H6: CHEQUES | I6: ESPECES | J6: C.BLEUE | K6: C.B sans contact | L6: CHEQUES | M6: ESPECES | N6: C.BLEUE | O6: C.B sans contact | P6: CHEQUES | Q6: ESPECES | R6: C.BLEUE | S6: C.B sans contact | T6: CHEQUES | U6: ESPECES | V6: C.BLEUE | W6: C.B sans contact | X6: CHEQUES | Y6: ESPECES | Z6: C.BLEUE | AA6: C.B sans contact | AB6: CHEQUES | AC6: ESPECES | AD6: C.BLEUE | AE6: C.B sans contact | AF6: CHEQUES | AG6: ESPECES | AH6: C.BLEUE | AI6: C.B sans contact | AJ6: CHEQUES | AK6: ESPECES | AL6: CB+CHQ+ESP. | AM6: AGENTS | AN6: C.BLEUE | AO6: C.B sans contact | AP6: CHEQUES | AQ6: ESPECES | AR6: C.BLEUE | AS6: C.B sans contact | AT6: CHEQUES | AU6: ESPECES | AV6: C.BLEUE | AW6: C.B sans contact | AX6: CHEQUES | AY6: ESPECES | AZ6: C.BLEUE | BA6: C.B sans contact | BB6: CHEQUES | BC6: ESPECES | BD6: C.BLEUE | BE6: C.B sans contact | BF6: CHEQUES | BG6: ESPECES | BH6: C.BLEUE | BI6: C.B sans contact | BJ6: CHEQUES | BK6: ESPECES | BL6: C.BLEUE | BM6: C.B sans contact | BN6: CHEQUES | BO6: ESPECES | BP6: C.BLEUE | BQ6: C.B sans contact | BR6: CHEQUES | BS6: ESPECES | BT6: CB+CHQ+ESP. | BU6: AGENTS | BV6: C.BLEUE | BW6: C.B sans contact | BX6: CHEQUES | BY6: ESPECES | BZ6: C.BLEUE | CA6: C.B sans contact | CB6: CHEQUES | CC6: ESPECES | CD6: C.BLEUE | CE6: C.B sans contact | CF6: CHEQUES | CG6: ESPECES | CH6: C.BLEUE | CI6: C.B sans contact | CJ6: CHEQUES | CK6: ESPECES | CL6: C.BLEUE | CM6: C.B sans contact | CN6: CHEQUES | CO6: ESPECES | CP6: C.BLEUE | CQ6: C.B sans contact | CR6: CHEQUES | CS6: ESPECES | CT6: C.BLEUE | CU6: C.B sans contact | CV6: CHEQUES | CW6: ESPECES | CX6: C.BLEUE | CY6: C.B sans contact | CZ6: CHEQUES | DA6: ESPECES | DB6: CB+CHQ+ESP. | DC6: AGENTS | DD6: C.BLEUE | DE6: C.B sans contact | DF6: CHEQUES | DG6: ESPECES | DH6: C.BLEUE | DI6: C.B sans contact | DJ6: CHEQUES | DK6: ESPECES | DL6: C.BLEUE | DM6: C.B sans contact | DN6: CHEQUES | DO6: ESPECES | DP6: C.BLEUE | DQ6: C.B sans contact | DR6: CHEQUES | DS6: ESPECES | DT6: C.BLEUE | DU6: C.B sans contact | DV6: CHEQUES | DW6: ESPECES | DX6: C.BLEUE | DY6: C.B sans contact | DZ6: CHEQUES | EA6: ESPECES | EB6: C.BLEUE | EC6: C.B sans contact | ED6: CHEQUES | EE6: ESPECES | EF6: CB+CHQ+ESP. | EG6: VERSEMENT
A8: CAISSE VOLANTE 1 | J8: 845.05 | K8: 25.9 | L8: 1839.28 | M8: 630 | N8: 995.85 | P8: 406.2 | Q8: 270 | R8: 1094.4 | S8: 13.05 | T8: 574.5 | U8: 160 | V8: 625.75 | W8: 4.1 | X8: 46.5 | Y8: 65 | AL8: =SUM(B8:AK8) -> 7595.58 | AM8: =+A8 -> CAISSE VOLANTE 1 | BT8: =SUM(AN8:BS8) -> 0 | BU8: =+AM8 -> CAISSE VOLANTE 1 | DB8: =SUM(BV8:DA8) -> 0 | DC8: =+BU8 -> CAISSE VOLANTE 1 | EF8: =SUM(DD8:EE8) -> 0 | EH8: CAISSE VOLANTE 1 | GB8: =+SUM(EJ8:EJ11)+SUM(EO8:EO11)+SUM(ET8:ET11)+SUM(EY8:EY11) -> 0
J9: 987.4 | K9: 50.9 | M9: 3 | N9: 578.95 | Q9: 1.15 | U9: 4.75 | V9: 188.4 | Y9: 4.7 | AL9: =SUM(B9:AK9) -> 1819.25 | BT9: 0 | DB9: 0 | EF9: 0
AL10: 0 | BT10: 0 | DB10: 0 | EF10: 0
AL11: 0 | BT11: 0 | DB11: 0 | EF11: 0 | EG11: =SUM(AL8:AL11)+SUM(BT8:BT11)+SUM(DB8:DB11)+SUM(EF8:EF11) -> 9414.83
A12: CAISSE VOLANTE 2 | J12: 590.7 | L12: 779.3 | M12: 1035 | N12: 2574.05 | P12: 115.05 | Q12: 365 | R12: 204.6 | T12: 929.43 | U12: 185 | V12: 1500.3 | W12: 21.5 | X12: 488.4 | Y12: 315 | AL12: =SUM(B12:AK12) -> 9103.33 | AM12: =+A12 -> CAISSE VOLANTE 2 | BT12: 0 | BU12: =+AM12 -> CAISSE VOLANTE 2 | DB12: =SUM(BV12:DA12) -> 0 | DC12: =+BU12 -> CAISSE VOLANTE 2 | EF12: 0 | EH12: CAISSE VOLANTE 2 | GB12: =+SUM(EJ12:EJ15)+SUM(EO12:EO15)+SUM(ET12:ET15)+SUM(EY12:EY15) -> 0
J13: 762.2 | K13: 20 | M13: 0.2 | N13: 607.6 | Q13: 0.05 | R13: 1838.25 | S13: =16.3+13.5 -> 29.8 | U13: 2.2 | V13: 1751.2 | W13: 1.5 | Y13: 0.95 | AL13: 5013.95 | BT13: 0 | DB13: 0 | EF13: 0
AL14: 0 | BT14: 0 | DB14: 0 | EF14: 0
J15: 720.4 | AL15: 720.4 | BT15: 0 | DB15: 0 | EF15: 0 | EG15: =SUM(AL12:AL15)+SUM(BT12:BT15)+SUM(DB12:DB15)+SUM(EF12:EF15) -> 14837.68
A16: CAISSE VOLANTE 3 | N16: 676.05 | O16: 41.9 | P16: 510.85 | Q16: 1185 | V16: 418.7 | W16: 78.65 | X16: 163.2 | Y16: 280 | AL16: 3354.35 | AM16: =+A16 -> CAISSE VOLANTE 3 | BT16: 0 | BU16: =+AM16 -> CAISSE VOLANTE 3 | DB16: 0 | DC16: =+BU16 -> CAISSE VOLANTE 3 | EF16: 0 | EH16: CAISSE VOLANTE 3 | GB16: =+SUM(EJ16:EJ19)+SUM(EO16:EO19)+SUM(ET16:ET19)+SUM(EY16:EY19) -> 0
N17: 3389.83 | O17: 124.35 | Q17: 31.45 | V17: 539.18 | W17: 8 | Y17: 4.8 | AL17: 4097.61 | BT17: 0 | DB17: 0 | EF17: 0
AL18: 0 | BT18: 0 | DB18: 0 | EF18: 0
AL19: 0 | BT19: 0 | DB19: 0 | EF19: 0 | EG19: =SUM(AL16:AL19)+SUM(BT16:BT19)+SUM(DB16:DB19)+SUM(EF16:EF19) -> 7451.96
A20: CAISSE VOLANTE 4 | J20: 855.55 | K20: 22.1 | L20: 161.8 | M20: 295 | R20: 756.35 | S20: 14.5 | T20: 275 | U20: 80 | V20: =1316.35+0.6 -> 1316.95 | X20: 721.2 | Y20: 790 | AL20: =SUM(B20:AK20) -> 5288.45 | AM20: =+A20 -> CAISSE VOLANTE 4 | BT20: 0 | BU20: =+AM20 -> CAISSE VOLANTE 4 | DB20: 0 | DC20: =+BU20 -> CAISSE VOLANTE 4 | EF20: 0 | EH20: CAISSE VOLANTE 4 | GB20: =+SUM(EJ20:EJ23)+SUM(EO20:EO23)+SUM(ET20:ET23)+SUM(EY20:EY23) -> 0
J21: 1377.6 | M21: 0.8 | R21: 615 | U21: 4.35 | V21: 986.1 | Y21: 2.1 | AL21: 2985.95 | BT21: 0 | DB21: 0 | EF21: 0
AL22: 0 | BT22: 0 | DB22: 0 | EF22: 0
AL23: 0 | BT23: 0 | DB23: 0 | EF23: 0 | EG23: =SUM(AL20:AL23)+SUM(BT20:BT23)+SUM(DB20:DB23)+SUM(EF20:EF23) -> 8274.4
A24: CAISSE VOLANTE 5 | J24: 657.1 | K24: 17.8 | L24: 703.8 | M24: 340 | N24: 1162.55 | O24: 19.4 | P24: 141.8 | Q24: 230 | R24: 688.8 | S24: 27.1 | T24: 384.7 | U24: 245 | V24: 878.5 | W24: 27 | X24: 538.65 | Y24: 90 | AL24: 6152.2 | AM24: =+A24 -> CAISSE VOLANTE 5 | BT24: 0 | BU24: =+AM24 -> CAISSE VOLANTE 5 | DB24: 0 | DC24: =+BU24 -> CAISSE VOLANTE 5 | EF24: 0 | EH24: CAISSE VOLANTE 5 | GB24: =+SUM(EJ24:EJ27)+SUM(EO24:EO27)+SUM(ET24:ET27)+SUM(EY24:EY27) -> 0
J25: 1473.15 | K25: 8 | M25: 0.35 | N25: 1826 | Q25: 0.35 | R25: 1212.25 | S25: 21.5 | U25: 4.65 | Y25: 2.35 | AL25: 4548.6 | BT25: 0 | DB25: 0 | EF25: 0
AL26: 0 | BT26: 0 | DB26: 0 | EF26: 0
AL27: 0 | BT27: 0 | DB27: 0 | EF27: 0 | EG27: =SUM(AL24:AL27)+SUM(BT24:BT27)+SUM(DB24:DB27)+SUM(EF24:EF27) -> 10700.8
A28: CAISSE VOLANTE 6 | N28: 560.65 | O28: 36 | P28: 1026.6 | Q28: 435 | AL28: 2058.25 | AM28: =+A28 -> CAISSE VOLANTE 6 | BT28: 0 | BU28: =+AM28 -> CAISSE VOLANTE 6 | DB28: 0 | DC28: =+BU28 -> CAISSE VOLANTE 6 | EF28: 0 | EH28: CAISSE VOLANTE 6 | GB28: =+SUM(EJ28:EJ31)+SUM(EO28:EO31)+SUM(ET28:ET31)+SUM(EY28:EY31) -> 0
N29: 622.3 | O29: 8 | Q29: 2.9 | AL29: 633.2 | BT29: 0 | DB29: 0 | EF29: 0
AL30: 0 | BT30: 0 | DB30: 0 | EF30: 0
AL31: 0 | BT31: 0 | DB31: 0 | EF31: 0 | EG31: =SUM(AL28:AL31)+SUM(BT28:BT31)+SUM(DB28:DB31)+SUM(EF28:EF31) -> 2691.45
A32: CAISSE VOLANTE 7 | N32: 158.5 | P32: 251.7 | Q32: 190 | R32: 915.16 | S32: 16 | T32: 376.05 | U32: 160 | V32: 836 | W32: 20.05 | X32: 86.7 | Y32: 100 | AL32: 3110.16 | AM32: =+A32 -> CAISSE VOLANTE 7 | BT32: 0 | BU32: =+AM32 -> CAISSE VOLANTE 7 | DB32: 0 | DC32: =+BU32 -> CAISSE VOLANTE 7 | EF32: 0 | EH32: CAISSE VOLANTE 7 | GB32: =+SUM(EJ32:EJ35)+SUM(EO32:EO35)+SUM(ET32:ET35)+SUM(EY32:EY35) -> 0
AL33: 0 | BT33: 0 | DB33: 0 | EF33: 0
AL34: 0 | BT34: 0 | DB34: 0 | EF34: 0
N35: 1072.3 | O35: 22.7 | Q35: 3.65 | R35: 407.8 | S35: 9 | U35: 5.1 | V35: 927.2 | W35: 5.8 | Y35: 5.04 | AL35: 2458.59 | BT35: 0 | DB35: 0 | EF35: 0 | EG35: =SUM(AL32:AL35)+SUM(BT32:BT35)+SUM(DB32:DB35)+SUM(EF32:EF35) -> 5568.75
A36: CAISSE VOLANTE 8 | N36: 183.3 | O36: 13.5 | P36: 81.4 | Q36: 75 | V36: 1403 | W36: 15.3 | X36: 755.5 | Y36: 270 | AL36: 2797 | AM36: =+A36 -> CAISSE VOLANTE 8 | BT36: 0 | BU36: =+AM36 -> CAISSE VOLANTE 8 | DB36: 0 | DC36: =+BU36 -> CAISSE VOLANTE 8 | EF36: 0 | EH36: CAISSE VOLANTE 8 | GB36: =+SUM(EJ36:EJ39)+SUM(EO36:EO39)+SUM(ET36:ET39)+SUM(EY36:EY39) -> 0
AL37: 0 | BT37: 0 | DB37: 0 | EF37: 0
AL38: 0 | BT38: 0 | DB38: 0 | EF38: 0
N39: 97.8 | Q39: 2.75 | Y39: 8.2 | AL39: 108.75 | BT39: 0 | DB39: 0 | EF39: 0 | EG39: =SUM(AL36:AL39)+SUM(BT36:BT39)+SUM(DB36:DB39)+SUM(EF36:EF39) -> 2905.75
A40: CAISSE VOLANTE 9 V. | J40: 2854.35 | K40: 133.55 | L40: 64.8 | M40: 635 | N40: 1480.7 | O40: 62.95 | P40: =609.9-1 -> 608.9 | Q40: 415 | R40: 386.2 | S40: 36.55 | T40: 194.8 | U40: 125 | V40: 1137.8 | X40: 161.3 | Y40: 55 | AL40: 8351.9 | AM40: =+A40 -> CAISSE VOLANTE 9 V. | BT40: 0 | BU40: =+AM40 -> CAISSE VOLANTE 9 V. | DB40: 0 | DC40: =+BU40 -> CAISSE VOLANTE 9 V. | EF40: 0 | EH40: CAISSE VOLANTE 9 V. | GB40: =+SUM(EJ40:EJ43)+SUM(EO40:EO43)+SUM(ET40:ET43)+SUM(EY40:EY43) -> 0
AL41: 0 | BT41: 0 | DB41: 0 | EF41: 0
AL42: 0 | BT42: 0 | DB42: 0 | EF42: 0
M43: 3 | Q43: 4.3 | U43: 3.8 | Y43: 1.8 | AL43: 12.9 | BT43: 0 | DB43: 0 | EF43: 0 | EG43: =SUM(AL40:AL43)+SUM(BT40:BT43)+SUM(DB40:DB43)+SUM(EF40:EF43) -> 8364.8
A44: CAISSE VOLANTE 10 V. | AL44: 0 | AM44: =+A44 -> CAISSE VOLANTE 10 V. | BT44: =SUM(AN44:BS44) -> 0 | BU44: =+AM44 -> CAISSE VOLANTE 10 V. | DB44: =SUM(BV44:DA44) -> 0 | DC44: =+BU44 -> CAISSE VOLANTE 10 V. | EF44: =SUM(DD44:EE44) -> 0 | EH44: CAISSE VOLANTE 10 V. | GB44: =+SUM(EJ44:EJ47)+SUM(EO44:EO47)+SUM(ET44:ET47)+SUM(EY44:EY47) -> 0
AL45: 0 | BT45: 0 | DB45: 0 | EF45: 0
AL46: 0 | BT46: 0 | DB46: 0 | EF46: 0
AL47: 0 | BT47: 0 | DB47: 0 | EF47: 0 | EG47: =SUM(AL44:AL47)+SUM(BT44:BT47)+SUM(DB44:DB47)+SUM(EF44:EF47) -> 0
A48: CAISSE VOLANTE 19 V. | AL48: 0 | AM48: =+A48 -> CAISSE VOLANTE 19 V. | BT48: 0 | BU48: =+AM48 -> CAISSE VOLANTE 19 V. | DB48: 0 | DC48: =+BU48 -> CAISSE VOLANTE 19 V. | EF48: 0 | EH48: CAISSE VOLANTE 19 V. | GB48: =+SUM(EJ48:EJ51)+SUM(EO48:EO51)+SUM(ET48:ET51)+SUM(EY48:EY51) -> 0
AL49: 0 | BT49: 0 | DB49: 0 | EF49: 0
AL50: 0 | BT50: 0 | DB50: 0 | EF50: 0
AL51: 0 | BT51: 0 | DB51: 0 | EF51: 0 | EG51: =SUM(AL48:AL51)+SUM(BT48:BT51)+SUM(DB48:DB51)+SUM(EF48:EF51) -> 0
A52: CAISSE VOLANTE 20 V. | AL52: 0 | AM52: =+A52 -> CAISSE VOLANTE 20 V. | BT52: 0 | BU52: =+AM52 -> CAISSE VOLANTE 20 V. | DB52: 0 | DC52: =+BU52 -> CAISSE VOLANTE 20 V. | EF52: 0 | EH52: CAISSE VOLANTE 20 V. | GB52: =+SUM(EJ52:EJ55)+SUM(EO52:EO55)+SUM(ET52:ET55) -> 0
AL53: 0 | BT53: 0 | DB53: 0 | EF53: 0
AL54: 0 | BT54: 0 | DB54: 0 | EF54: 0
AL55: 0 | BT55: 0 | DB55: 0 | EF55: 0 | EG55: =SUM(AL52:AL55)+SUM(BT52:BT55)+SUM(DB52:DB55)+SUM(EF52:EF55) -> 0
A56: CAISSE VOLANTE 11 F | J56: 3980.8 | L56: 188.4 | M56: 465 | N56: 1045.65 | O56: 97.95 | P56: 303.7 | Q56: 260 | R56: 1429.25 | S56: 82.5 | T56: 4.6 | U56: 200 | V56: 1279.25 | X56: 108.7 | Y56: 60 | AL56: 9505.8 | AM56: =+A56 -> CAISSE VOLANTE 11 F | BT56: 0 | BU56: =+AM56 -> CAISSE VOLANTE 11 F | DB56: 0 | DC56: =+BU56 -> CAISSE VOLANTE 11 F | EF56: 0 | EH56: CAISSE VOLANTE 11 F | GB56: =+SUM(EJ56:EJ59)+SUM(EO56:EO59)+SUM(ET56:ET59)+SUM(EY56:EY59) -> 0
AL57: 0 | BT57: 0 | DB57: 0 | EF57: 0
AL58: 0 | BT58: 0 | DB58: 0 | EF58: 0
M59: 2.4 | Q59: 2.55 | U59: 3.9 | Y59: 0.6 | AL59: 9.45 | BT59: 0 | DB59: 0 | EF59: 0 | EG59: =SUM(AL56:AL59)+SUM(BT56:BT59)+SUM(DB56:DB59)+SUM(EF56:EF59) -> 9515.25
A60: CAISSE VOLANTE 12 F | AL60: 0 | AM60: =+A60 -> CAISSE VOLANTE 12 F | BT60: =SUM(AN60:BS60) -> 0 | BU60: =+AM60 -> CAISSE VOLANTE 12 F | DB60: =SUM(BV60:DA60) -> 0 | DC60: =+BU60 -> CAISSE VOLANTE 12 F | EF60: =SUM(DD60:EE60) -> 0 | EH60: CAISSE VOLANTE 12 F | GB60: =+SUM(EJ60:EJ63)+SUM(EO60:EO63)+SUM(ET60:ET63) -> 0
AL61: 0 | BT61: 0 | DB61: 0 | EF61: 0
AL62: 0 | BT62: 0 | DB62: 0 | EF62: 0
AL63: 0 | BT63: 0 | DB63: 0 | EF63: 0 | EG63: =SUM(AL60:AL63)+SUM(BT60:BT63)+SUM(DB60:DB63)+SUM(EF60:EF63) -> 0
AL64: 0 | AM64: =+A64 -> 0 | BT64: 0 | BU64: =+AM64 -> 0 | DB64: 0 | DC64: =+BU64 -> 0 | EF64: 0 | EH64: =+A64 -> 0 | GB64: =+SUM(EJ64:EJ67)+SUM(EO64:EO67)+SUM(ET64:ET67) -> 0
AL65: 0 | BT65: 0 | DB65: 0 | EF65: 0
AL66: 0 | BT66: 0 | DB66: 0 | EF66: 0
AL67: 0 | BT67: 0 | DB67: 0 | EF67: 0 | EG67: =SUM(AL64:AL67)+SUM(BT64:BT67)+SUM(DB64:DB67)+SUM(EF64:EF67) -> 0
A68: CAISSE VOLANTE 12 | AL68: 0 | AM68: =+A68 -> CAISSE VOLANTE 12 | BT68: =SUM(AN68:BS68) -> 0 | BU68: =+AM68 -> CAISSE VOLANTE 12 | DB68: 0 | DC68: =+BU68 -> CAISSE VOLANTE 12 | EF68: 0 | EH68: =+A68 -> CAISSE VOLANTE 12 | GB68: =+SUM(EJ68:EJ71)+SUM(EO68:EO71)+SUM(ET68:ET71)+SUM(EY68:EY71) -> 0
AL69: 0 | BT69: 0 | DB69: 0 | EF69: 0
AL70: 0 | BT70: 0 | DB70: 0 | EF70: 0
AL71: 0 | BT71: 0 | DB71: 0 | EF71: 0 | EG71: =SUM(AL68:AL71)+SUM(BT68:BT71)+SUM(DB68:DB71)+SUM(EF68:EF71) -> 0
A72: / | AL72: 0 | AM72: =+A72 -> / | BT72: 0 | BU72: =+AM72 -> / | DB72: 0 | DC72: =+BU72 -> / | EF72: =SUM(DD72:EE72) -> 0 | EH72: / | GB72: =+SUM(EJ72:EJ75)+SUM(EO72:EO75)+SUM(ET72:ET75) -> 0
AL73: =SUM(B73:AK73) -> 0 | BT73: 0 | DB73: 0 | EF73: 0
AL74: 0 | BT74: 0 | DB74: 0 | EF74: 0
AL75: 0 | BT75: 0 | DB75: 0 | EF75: 0 | EG75: =SUM(AL72:AL75)+SUM(BT72:BT75)+SUM(DB72:DB75)+SUM(EF72:EF75) -> 0
A76: CAISSE VOLANTE 13 | AL76: 0 | AM76: =+A76 -> CAISSE VOLANTE 13 | BT76: 0 | BU76: =+AM76 -> CAISSE VOLANTE 13 | DB76: 0 | DC76: =+BU76 -> CAISSE VOLANTE 13 | EF76: 0 | EH76: =+A76 -> CAISSE VOLANTE 13 | GB76: =+SUM(EJ76:EJ79)+SUM(EO76:EO79)+SUM(ET76:ET79)+SUM(EY76:EY79) -> 0
AL77: 0 | BT77: 0 | DB77: 0 | EF77: 0
AL78: 0 | BT78: 0 | DB78: 0 | EF78: 0
AL79: 0 | BT79: 0 | DB79: 0 | EF79: 0 | EG79: =SUM(AL76:AL79)+SUM(BT76:BT79)+SUM(DB76:DB79)+SUM(EF76:EF79) -> 0
A80: CAISSE VOLANTE 14 | J80: 569 | K80: 25.2 | L80: 1074.75 | M80: 1075 | N80: 733.9 | O80: 35.95 | P80: 444.3 | Q80: 310 | V80: 52 | W80: 49.5 | X80: 476 | Y80: 20 | AL80: 4865.6 | AM80: =+A80 -> CAISSE VOLANTE 14 | BT80: 0 | BU80: =+AM80 -> CAISSE VOLANTE 14 | DB80: 0 | DC80: =+BU80 -> CAISSE VOLANTE 14 | EF80: 0 | EH80: =+A80 -> CAISSE VOLANTE 14 | GB80: =+SUM(EJ80:EJ83)+SUM(EO80:EO83)+SUM(ET80:ET83)+SUM(EY80:EY83) -> 0
J81: 2759.6 | K81: 46.4 | M81: 0.3 | N81: 719.15 | Q81: 1.7 | Y81: 2.7 | AL81: 3529.85 | BT81: 0 | DB81: 0 | EF81: 0
AL82: 0 | BT82: 0 | DB82: 0 | EF82: 0
AL83: 0 | BT83: 0 | DB83: 0 | EF83: 0 | EG83: =SUM(AL80:AL83)+SUM(BT80:BT83)+SUM(DB80:DB83)+SUM(EF80:EF83) -> 8395.45
A84: CAISSE VOLANTE 15 | AL84: 0 | AM84: =+A84 -> CAISSE VOLANTE 15 | BT84: 0 | BU84: =+AM84 -> CAISSE VOLANTE 15 | DB84: 0 | DC84: =+BU84 -> CAISSE VOLANTE 15 | EF84: 0 | EH84: =+A84 -> CAISSE VOLANTE 15 | GB84: =+SUM(EJ84:EJ87)+SUM(EO84:EO87)+SUM(ET84:ET87)+SUM(EY84:EY87) -> 0
AL85: 0 | BT85: 0 | DB85: 0 | EF85: 0
AL86: 0 | BT86: 0 | DB86: 0 | EF86: 0
AL87: 0 | BT87: 0 | DB87: 0 | EF87: 0 | EG87: =SUM(AL84:AL87)+SUM(BT84:BT87)+SUM(DB84:DB87)+SUM(EF84:EF87) -> 0
A88: CAISSE VOLANTE 16 | AL88: 0 | AM88: =+A88 -> CAISSE VOLANTE 16 | BT88: 0 | BU88: =+AM88 -> CAISSE VOLANTE 16 | DB88: 0 | DC88: =+BU88 -> CAISSE VOLANTE 16 | EF88: 0 | EH88: =+A88 -> CAISSE VOLANTE 16 | GB88: =+SUM(EJ88:EJ91)+SUM(EO88:EO91)+SUM(ET88:ET91)+SUM(EY88:EY91) -> 0
AL89: 0 | BT89: 0 | DB89: 0 | EF89: 0
AL90: 0 | BT90: 0 | DB90: 0 | EF90: 0
AL91: 0 | BT91: 0 | DB91: 0 | EF91: 0 | EG91: =SUM(AL88:AL91)+SUM(BT88:BT91)+SUM(DB88:DB91)+SUM(EF88:EF91) -> 0
A92: CAISSE VOLANTE 17 | R92: 17.9 | S92: 294 | T92: 717.38 | U92: 560 | AL92: 1589.28 | AM92: =+A92 -> CAISSE VOLANTE 17 | BT92: 0 | BU92: =+AM92 -> CAISSE VOLANTE 17 | DB92: 0 | DC92: =+BU92 -> CAISSE VOLANTE 17 | EF92: 0 | EH92: =+A92 -> CAISSE VOLANTE 17 | GB92: =+SUM(EJ92:EJ95)+SUM(EO92:EO95)+SUM(ET92:ET95)+SUM(EY92:EY95) -> 0
R93: 2278.05 | S93: 39.05 | U93: 4.4 | AL93: 2321.5 | BT93: 0 | DB93: 0 | EF93: 0
AL94: 0 | BT94: 0 | DB94: 0 | EF94: 0
AL95: 0 | BT95: 0 | DB95: 0 | EF95: 0 | EG95: =SUM(AL92:AL95)+SUM(BT92:BT95)+SUM(DB92:DB95)+SUM(EF92:EF95) -> 3910.78
A96: / | AL96: 0 | AM96: =+A96 -> / | BT96: 0 | BU96: =+AM96 -> / | DB96: 0 | DC96: =+BU96 -> / | EF96: 0 | EH96: =+A96 -> / | GB96: =+SUM(EJ96:EJ99)+SUM(EO96:EO99)+SUM(ET96:ET99) -> 0
AL97: 0 | BT97: 0 | DB97: 0 | EF97: 0
AL98: 0 | BT98: 0 | DB98: 0 | EF98: 0
AL99: 0 | BT99: 0 | DB99: 0 | EF99: 0 | EG99: =SUM(AL96:AL99)+SUM(BT96:BT99)+SUM(DB96:DB99)+SUM(EF96:EF99) -> 0
A100: CAISSE VOLANTE 18 | AL100: 0 | AM100: =+A100 -> CAISSE VOLANTE 18 | BT100: =SUM(AN100:BS100) -> 0 | BU100: =+AM100 -> CAISSE VOLANTE 18 | DB100: =SUM(BV100:DA100) -> 0 | DC100: =+BU100 -> CAISSE VOLANTE 18 | EF100: =SUM(DD100:EE100) -> 0 | EH100: =+A100 -> CAISSE VOLANTE 18 | GB100: =+SUM(EJ100:EJ103)+SUM(EO100:EO103)+SUM(ET100:ET103)+SUM(EY100:EY103) -> 0
AL101: 0 | BT101: 0 | DB101: 0 | EF101: 0
AL102: 0 | BT102: 0 | DB102: 0 | EF102: 0
AL103: 0 | BT103: 0 | DB103: 0 | EF103: 0 | EG103: =SUM(AL100:AL103)+SUM(BT100:BT103)+SUM(DB100:DB103)+SUM(EF100:EF103) -> 0
AL104: 0 | AM104: =+A104 -> 0 | BT104: 0 | BU104: =+AM104 -> 0 | DB104: 0 | DC104: =+BU104 -> 0 | EF104: 0 | EH104: =+A104 -> 0 | GB104: =+SUM(EJ104:EJ107)+SUM(EO104:EO107)+SUM(ET104:ET107) -> 0
AL105: 0 | BT105: 0 | DB105: 0 | EF105: 0
AL106: 0 | BT106: 0 | DB106: 0 | EF106: 0
AL107: 0 | BT107: 0 | DB107: 0 | EF107: 0 | EG107: =SUM(AL104:AL107)+SUM(BT104:BT107)+SUM(DB104:DB107)+SUM(EF104:EF107) -> 0
A108: CAISSE VOLANTE 19 | AL108: 0 | AM108: =+A108 -> CAISSE VOLANTE 19 | BT108: 0 | BU108: =+AM108 -> CAISSE VOLANTE 19 | DB108: 0 | DC108: =+BU108 -> CAISSE VOLANTE 19 | EF108: 0 | EH108: =+A108 -> CAISSE VOLANTE 19 | GB108: =+SUM(EJ108:EJ111)+SUM(EO108:EO111)+SUM(ET108:ET111)+SUM(EY108:EY111) -> 0
AL109: 0 | BT109: 0 | DB109: 0 | EF109: 0
AL110: 0 | BT110: 0 | DB110: 0 | EF110: 0
AL111: 0 | BT111: 0 | DB111: 0 | EF111: 0 | EG111: =SUM(AL108:AL111)+SUM(BT108:BT111)+SUM(DB108:DB111)+SUM(EF108:EF111) -> 0
A112: / | AL112: 0 | AM112: =+A112 -> / | BT112: 0 | BU112: =+AM112 -> / | DB112: 0 | DC112: =+BU112 -> / | EF112: 0 | EH112: =+A112 -> / | GB112: =+SUM(EJ112:EJ115)+SUM(EO112:EO115)+SUM(ET112:ET115) -> 0
AL113: 0 | BT113: 0 | DB113: 0 | EF113: 0
AL114: 0 | BT114: 0 | DB114: 0 | EF114: 0
AL115: 0 | BT115: 0 | DB115: 0 | EF115: 0 | EG115: =SUM(AL112:AL115)+SUM(BT112:BT115)+SUM(DB112:DB115)+SUM(EF112:EF115) -> 0
A116: / | AL116: 0 | AM116: =+A116 -> / | BT116: 0 | BU116: =+AM116 -> / | DB116: 0 | DC116: =+BU116 -> / | EF116: 0 | EH116: =+A116 -> / | GB116: =+SUM(EJ116:EJ119)+SUM(EO116:EO119)+SUM(ET116:ET119) -> 0
AL117: 0 | BT117: 0 | DB117: 0 | EF117: 0
AL118: 0 | BT118: 0 | DB118: 0 | EF118: 0
AL119: 0 | BT119: 0 | DB119: 0 | EF119: 0 | EG119: =SUM(AL116:AL119)+SUM(BT116:BT119)+SUM(DB116:DB119)+SUM(EF116:EF119) -> 0
A120: / | AL120: 0 | AM120: =+A120 -> / | BT120: 0 | BU120: =+AM120 -> / | DB120: 0 | DC120: =+BU120 -> / | EF120: 0 | EH120: =+A120 -> / | GB120: =+SUM(EJ120:EJ123)+SUM(EO120:EO123)+SUM(ET120:ET123) -> 0
AL121: 0 | BT121: 0 | DB121: 0 | EF121: 0
AL122: 0 | BT122: 0 | DB122: 0 | EF122: 0
AL123: 0 | BT123: 0 | DB123: 0 | EF123: 0 | EG123: =SUM(AL120:AL123)+SUM(BT120:BT123)+SUM(DB120:DB123)+SUM(EF120:EF123) -> 0
A124: CAISSE VOLANTE 20 | R124: 925.7 | T124: 187 | U124: 195 | AL124: 1307.7 | AM124: =+A124 -> CAISSE VOLANTE 20 | BT124: 0 | BU124: =+AM124 -> CAISSE VOLANTE 20 | DB124: 0 | DC124: =+BU124 -> CAISSE VOLANTE 20 | EF124: 0 | EH124: =+A124 -> CAISSE VOLANTE 20 | GB124: =+SUM(EJ124:EJ127)+SUM(EO124:EO127)+SUM(ET124:ET127)+SUM(EY124:EY127) -> 0
U125: 1.7 | AL125: 1.7 | BT125: 0 | DB125: 0 | EF125: 0
AL126: 0 | BT126: 0 | DB126: 0 | EF126: 0
AL127: 0 | BT127: 0 | DB127: 0 | EF127: 0 | EG127: =SUM(AL124:AL127)+SUM(BT124:BT127)+SUM(DB124:DB127)+SUM(EF124:EF127) -> 1309.4
A128: / | AL128: 0 | AM128: =+A128 -> / | BT128: 0 | BU128: =+AM128 -> / | DB128: 0 | DC128: =+BU128 -> / | EF128: 0 | EH128: =+A128 -> / | GB128: =+SUM(EJ128:EJ131)+SUM(EO128:EO131)+SUM(ET128:ET131) -> 0
AL129: 0 | BT129: 0 | DB129: 0 | EF129: 0
AL130: 0 | BT130: 0 | DB130: 0 | EF130: 0
AL131: 0 | BT131: 0 | DB131: 0 | EF131: 0 | EG131: =SUM(AL128:AL131)+SUM(BT128:BT131)+SUM(DB128:DB131)+SUM(EF128:EF131) -> 0
A132: CAISSE VOLANTE 21 | J132: 1518.88 | K132: 40.95 | L132: 1075 | M132: 720 | R132: =1186.5-0.2 -> 1186.3 | S132: 14.5 | T132: 73.5 | U132: 100 | V132: 492.35 | X132: 260.8 | Y132: 50 | AL132: 5532.28 | AM132: =+A132 -> CAISSE VOLANTE 21 | BT132: 0 | BU132: =+AM132 -> CAISSE VOLANTE 21 | DB132: 0 | DC132: =+BU132 -> CAISSE VOLANTE 21 | EF132: 0 | EH132: =+A132 -> CAISSE VOLANTE 21 | GB132: =+SUM(EJ132:EJ135)+SUM(EO132:EO135)+SUM(ET132:ET135)+SUM(EY132:EY135)+SUM(FD132:FD135) -> 0
J133: 1152.85 | K133: =28.72+0.03 -> 28.75 | M133: 2.05 | V133: 934.63 | W133: 12.6 | Y133: 2.95 | AL133: 2133.83 | BT133: 0 | DB133: 0 | EF133: 0
AL134: 0 | BT134: 0 | DB134: 0 | EF134: 0
V135: 361.65 | AL135: 361.65 | BT135: 0 | DB135: 0 | EF135: 0 | EG135: =SUM(AL132:AL135)+SUM(BT132:BT135)+SUM(DB132:DB135)+SUM(EF132:EF135) -> 8027.76
AL136: 0 | AM136: =+A136 -> 0 | BT136: 0 | BU136: =+AM136 -> 0 | DB136: 0 | DC136: =+BU136 -> 0 | EF136: 0 | EH136: =+A136 -> 0 | GB136: =+SUM(EJ136:EJ139)+SUM(EO136:EO139)+SUM(ET136:ET139) -> 0
AL137: =SUM(B137:AK137) -> 0 | BT137: 0 | DB137: 0 | EF137: 0
AL138: =SUM(B138:AK138) -> 0 | BT138: 0 | DB138: 0 | EF138: 0
AL139: 0 | BT139: =SUM(AN139:BS139) -> 0 | DB139: =SUM(BV139:DA139) -> 0 | EF139: =SUM(DD139:EE139) -> 0 | EG139: =SUM(AL136:AL139)+SUM(BT136:BT139)+SUM(DB136:DB139)+SUM(EF136:EF139) -> 0
AL140: 0 | AM140: =+A140 -> 0 | BT140: 0 | BU140: =+AM140 -> 0 | DB140: 0 | DC140: =+BU140 -> 0 | EF140: 0 | EH140: =+A140 -> 0 | GB140: =+SUM(EJ140:EJ143)+SUM(EO140:EO143)+SUM(ET140:ET143) -> 0
AL141: 0 | BT141: 0 | DB141: =SUM(BV141:DA141) -> 0 | EF141: 0
AL142: 0 | BT142: 0 | DB142: 0 | EF142: 0
AL143: 0 | BT143: 0 | DB143: 0 | EF143: 0 | EG143: =SUM(AL140:AL143)+SUM(BT140:BT143)+SUM(DB140:DB143)+SUM(EF140:EF143) -> 0
AL144: 0 | AM144: =+A144 -> 0 | BT144: 0 | BU144: =+AM144 -> 0 | DB144: 0 | DC144: =+BU144 -> 0 | EF144: 0 | EH144: =+A144 -> 0 | GB144: =+SUM(EJ144:EJ147)+SUM(EO144:EO147)+SUM(ET144:ET147) -> 0
AL145: 0 | BT145: 0 | DB145: 0 | EF145: 0
AL146: 0 | BT146: 0 | DB146: 0 | EF146: =SUM(DD146:EE146) -> 0
AL147: 0 | BT147: 0 | DB147: 0 | EF147: =SUM(DD147:EE147) -> 0 | EG147: =SUM(AL144:AL147)+SUM(BT144:BT147)+SUM(DB144:DB147)+SUM(EF144:EF147) -> 0
AL148: 0 | AM148: =+A148 -> 0 | BT148: 0 | BU148: =+AM148 -> 0 | DB148: 0 | DC148: =+BU148 -> 0 | EF148: 0 | EH148: =+A148 -> 0 | GB148: =+SUM(EJ148:EJ151)+SUM(EO148:EO151)+SUM(ET148:ET151) -> 0
AL149: 0 | BT149: 0 | DB149: 0 | EF149: 0
AL150: 0 | BT150: 0 | DB150: 0 | EF150: 0
AL151: 0 | BT151: =SUM(AN151:BS151) -> 0 | DB151: 0 | EF151: 0 | EG151: =SUM(AL148:AL151)+SUM(BT148:BT151)+SUM(DB148:DB151)+SUM(EF148:EF151) -> 0
AL152: 0 | AM152: =+A152 -> 0 | BT152: 0 | BU152: =+AM152 -> 0 | DB152: 0 | DC152: =+BU152 -> 0 | EF152: 0 | EH152: =+A152 -> 0 | GB152: =+SUM(EJ152:EJ155)+SUM(EO152:EO155)+SUM(ET152:ET155) -> 0
AL153: 0 | BT153: 0 | DB153: 0 | EF153: 0
AL154: 0 | BT154: 0 | DB154: 0 | EF154: 0
AL155: 0 | BT155: 0 | DB155: 0 | EF155: 0 | EG155: =SUM(AL152:AL155)+SUM(BT152:BT155)+SUM(DB152:DB155)+SUM(EF152:EF155) -> 0
AL156: 0 | AM156: =+A156 -> 0 | BT156: 0 | BU156: =+AM156 -> 0 | DB156: 0 | DC156: =+BU156 -> 0 | EF156: 0 | EH156: =+A156 -> 0 | GB156: =+SUM(EJ156:EJ159)+SUM(EO156:EO159)+SUM(ET156:ET159) -> 0
AL157: 0 | BT157: 0 | DB157: 0 | EF157: 0
AL158: 0 | BT158: 0 | DB158: 0 | EF158: 0
AL159: 0 | BT159: 0 | DB159: 0 | EF159: 0 | EG159: =SUM(AL156:AL159)+SUM(BT156:BT159)+SUM(DB156:DB159)+SUM(EF156:EF159) -> 0
A160: CAISSE VOLANTE 22 | AL160: 0 | AM160: =+A160 -> CAISSE VOLANTE 22 | BT160: 0 | BU160: =+AM160 -> CAISSE VOLANTE 22 | DB160: 0 | DC160: =+BU160 -> CAISSE VOLANTE 22 | EF160: =SUM(DD160:EE160) -> 0 | EH160: =+A160 -> CAISSE VOLANTE 22 | GB160: =+SUM(EJ160:EJ163)+SUM(EO160:EO163)+SUM(ET160:ET163)+SUM(EY160:EY163) -> 0
AL161: 0 | BT161: 0 | DB161: 0 | EF161: 0
AL162: 0 | BT162: 0 | DB162: 0 | EF162: 0
AL163: 0 | BT163: 0 | DB163: 0 | EF163: 0 | EG163: =SUM(AL160:AL163)+SUM(BT160:BT163)+SUM(DB160:DB163)+SUM(EF160:EF163) -> 0
A164: CAISSE VOLANTE 23 | AL164: 0 | AM164: =+A164 -> CAISSE VOLANTE 23 | BT164: 0 | BU164: =+AM164 -> CAISSE VOLANTE 23 | DB164: 0 | DC164: =+BU164 -> CAISSE VOLANTE 23 | EF164: 0 | EH164: =+A164 -> CAISSE VOLANTE 23 | GB164: =+SUM(EJ164:EJ167)+SUM(EO164:EO167)+SUM(ET164:ET167)+SUM(EY164:EY167) -> 0
AL165: 0 | BT165: 0 | DB165: 0 | EF165: 0
AL166: 0 | BT166: 0 | DB166: 0 | EF166: 0
AL167: 0 | BT167: 0 | DB167: 0 | EF167: 0 | EG167: =SUM(AL164:AL167)+SUM(BT164:BT167)+SUM(DB164:DB167)+SUM(EF164:EF167) -> 0
A168: / | AL168: 0 | AM168: =+A168 -> / | BT168: =SUM(AN168:BS168) -> 0 | BU168: =+AM168 -> / | DB168: =SUM(BV168:DA168) -> 0 | DC168: =+BU168 -> / | EF168: 0 | EH168: =+A168 -> / | GB168: =+SUM(EJ168:EJ171)+SUM(EO168:EO171)+SUM(ET168:ET171)+SUM(EY168:EY171) -> 0
AL169: 0 | BT169: 0 | DB169: 0 | EF169: 0
AL170: 0 | BT170: 0 | DB170: 0 | EF170: 0
AL171: 0 | BT171: 0 | DB171: 0 | EF171: 0 | EG171: =SUM(AL168:AL171)+SUM(BT168:BT171)+SUM(DB168:DB171)+SUM(EF168:EF171) -> 0
A172: CAISSE VOLANTE 24 | J172: 401.4 | L172: 51.3 | M172: 120 | N172: 1908.4 | P172: 94.1 | Q172: 165 | AL172: =SUM(B172:AK172) -> 2740.2 | AM172: =+A172 -> CAISSE VOLANTE 24 | BT172: 0 | BU172: =+AM172 -> CAISSE VOLANTE 24 | DB172: 0 | DC172: =+BU172 -> CAISSE VOLANTE 24 | EF172: 0 | EH172: =+A172 -> CAISSE VOLANTE 24 | GB172: =+SUM(EJ172:EJ175)+SUM(EO172:EO175)+SUM(ET172:ET175)+SUM(EY172:EY175) -> 0
AL173: 0 | BT173: 0 | DB173: 0 | EF173: 0
AL174: 0 | BT174: 0 | DB174: 0 | EF174: 0
M175: 0.3 | Q175: 4.4 | AL175: 4.7 | BT175: 0 | DB175: 0 | EF175: 0 | EG175: =SUM(AL172:AL175)+SUM(BT172:BT175)+SUM(DB172:DB175)+SUM(EF172:EF175) -> 2744.9
A176: CAISSE VOLANTE 25 | AL176: 0 | AM176: =+A176 -> CAISSE VOLANTE 25 | BT176: 0 | BU176: =+AM176 -> CAISSE VOLANTE 25 | DB176: 0 | DC176: =+BU176 -> CAISSE VOLANTE 25 | EF176: 0 | EH176: =+A176 -> CAISSE VOLANTE 25 | GB176: =+SUM(EJ176:EJ179)+SUM(EO176:EO179)+SUM(ET176:ET179)+SUM(EY176:EY179) -> 0
AL177: 0 | BT177: 0 | DB177: 0 | EF177: 0
AL178: 0 | BT178: 0 | DB178: 0 | EF178: 0
AL179: 0 | BT179: 0 | DB179: 0 | EF179: 0 | EG179: =SUM(AL176:AL179)+SUM(BT176:BT179)+SUM(DB176:DB179)+SUM(EF176:EF179) -> 0
A180: CAISSE VOLANTE 26 | AL180: 0 | AM180: =+A180 -> CAISSE VOLANTE 26 | BT180: 0 | BU180: =+AM180 -> CAISSE VOLANTE 26 | DB180: 0 | DC180: =+BU180 -> CAISSE VOLANTE 26 | EF180: 0 | EH180: =+A180 -> CAISSE VOLANTE 26 | GB180: =+SUM(EJ180:EJ183)+SUM(EO180:EO183)+SUM(ET180:ET183)+SUM(EY180:EY183) -> 0
AL181: 0 | BT181: 0 | DB181: 0 | EF181: 0
AL182: 0 | BT182: 0 | DB182: 0 | EF182: 0
AL183: 0 | BT183: 0 | DB183: 0 | EF183: 0 | EG183: =SUM(AL180:AL183)+SUM(BT180:BT183)+SUM(DB180:DB183)+SUM(EF180:EF183) -> 0
A184: CAISSE VOLANTE 27 | AL184: 0 | AM184: =+A184 -> CAISSE VOLANTE 27 | BT184: 0 | BU184: =+AM184 -> CAISSE VOLANTE 27 | DB184: 0 | DC184: =+BU184 -> CAISSE VOLANTE 27 | EF184: 0 | EH184: =+A184 -> CAISSE VOLANTE 27 | GB184: =+SUM(EJ184:EJ187)+SUM(EO184:EO187)+SUM(ET184:ET187)+SUM(EY184:EY187) -> 0
AL185: 0 | BT185: 0 | DB185: 0 | EF185: 0
AL186: 0 | BT186: 0 | DB186: 0 | EF186: 0
AL187: 0 | BT187: 0 | DB187: 0 | EF187: 0 | EG187: =SUM(AL184:AL187)+SUM(BT184:BT187)+SUM(DB184:DB187)+SUM(EF184:EF187) -> 0
A188: / | AL188: 0 | AM188: =+A188 -> / | BT188: 0 | BU188: =+AM188 -> / | DB188: 0 | DC188: =+BU188 -> / | EF188: 0 | EH188: =+A188 -> / | GB188: =+SUM(EJ188:EJ191)+SUM(EO188:EO191)+SUM(ET188:ET191) -> 0
AL189: 0 | BT189: 0 | DB189: 0 | EF189: 0
AL190: 0 | BT190: 0 | DB190: 0 | EF190: 0
AL191: 0 | BT191: 0 | DB191: 0 | EF191: 0 | EG191: =SUM(AL188:AL191)+SUM(BT188:BT191)+SUM(DB188:DB191)+SUM(EF188:EF191) -> 0
A192: / | AL192: 0 | AM192: =+A192 -> / | BT192: 0 | BU192: =+AM192 -> / | DB192: 0 | DC192: =+BU192 -> / | EF192: 0 | EH192: =+A192 -> / | GB192: =+SUM(EJ192:EJ195)+SUM(EO192:EO195)+SUM(ET192:ET195) -> 0
AL193: 0 | BT193: 0 | DB193: 0 | EF193: 0
AL194: 0 | BT194: 0 | DB194: 0 | EF194: 0
AL195: 0 | BT195: 0 | DB195: 0 | EF195: 0 | EG195: =SUM(AL192:AL195)+SUM(BT192:BT195)+SUM(DB192:DB195)+SUM(EF192:EF195) -> 0
A196: CAISSE VOLANTE 28 | AL196: 0 | AM196: =+A196 -> CAISSE VOLANTE 28 | BT196: 0 | BU196: =+AM196 -> CAISSE VOLANTE 28 | DB196: 0 | DC196: =+BU196 -> CAISSE VOLANTE 28 | EF196: 0 | EH196: =+A196 -> CAISSE VOLANTE 28 | GB196: =+SUM(EJ196:EJ199)+SUM(EO196:EO199)+SUM(ET196:ET199) -> 0
AL197: 0 | BT197: 0 | DB197: 0 | EF197: 0
AL198: 0 | BT198: 0 | DB198: 0 | EF198: 0
AL199: 0 | BT199: 0 | DB199: 0 | EF199: 0 | EG199: =SUM(AL196:AL199)+SUM(BT196:BT199)+SUM(DB196:DB199)+SUM(EF196:EF199) -> 0
A200: / | AL200: 0 | AM200: =+A200 -> / | BT200: 0 | BU200: =+AM200 -> / | DB200: 0 | DC200: =+BU200 -> / | EF200: 0 | EH200: / | GB200: =+SUM(EJ200:EJ203)+SUM(EO200:EO203)+SUM(ET200:ET203) -> 0
AL201: =SUM(B201:AK201) -> 0 | BT201: 0 | DB201: 0 | EF201: 0
AL202: 0 | BT202: 0 | DB202: 0 | EF202: 0
... 4292 more rows

Sheet Base de données n°1
A1: CIB | B1: Interne | C1: Date de transaction | D1: Date de valeur | E1: Description | F1: Info complémentaire | G1: Référence | H1: Débit (EUR) | I1: Crédit (EUR)
B2: 2018-06-29 | D2: Solde initial | E2: Solde initial | G2: 0/0 | I2: 0
A3: 04 | B3: 2018-07-02 | C3: 2018-07-02 | D3: VERSEMENT ESPECE 28/06/18 | E3: BORDEREAU 0000000000 - POCHETTE 1900889379 | F3: 0000000 | G3: 0000000 | I3: 2595.36
A4: 04 | B4: 2018-07-02 | C4: 2018-07-02 | D4: VERSEMENT ESPECE 28/06/18 | E4: BORDEREAU 0000000000 - POCHETTE 1203169806 | F4: 0000000 | G4: 0000000 | I4: 208
A5: 04 | B5: 2018-07-02 | C5: 2018-07-02 | D5: VERSEMENT ESPECE 28/06/18 | E5: BORDEREAU 0000000000 - POCHETTE 1203169819 | F5: 0000000 | G5: 0000000 | I5: 151.5
A6: 04 | B6: 2018-07-02 | C6: 2018-07-02 | D6: VERSEMENT ESPECE 28/06/18 | E6: BORDEREAU 0000000000 - POCHETTE 1203169805 | F6: 0000000 | G6: 0000000 | I6: 99.1
A7: 04 | B7: 2018-07-02 | C7: 2018-07-02 | D7: VERSEMENT ESPECE 28/06/18 | E7: BORDEREAU 0000000000 - POCHETTE 1203169804 | F7: 0000000 | G7: 0000000 | I7: 98.4
A8: 04 | B8: 2018-07-02 | C8: 2018-07-02 | D8: VERSEMENT ESPECE 28/06/18 | E8: BORDEREAU 0000000000 - POCHETTE 1203169807 | F8: 0000000 | G8: 0000000 | I8: 63.5
A9: 04 | B9: 2018-07-02 | C9: 2018-07-02 | D9: VERSEMENT ESPECE 28/06/18 | E9: BORDEREAU 0000000000 - POCHETTE 1203169788 | F9: 0000000 | G9: 0000000 | I9: 50
A10: 04 | B10: 2018-07-02 | C10: 2018-07-02 | D10: VERSEMENT ESPECE 28/06/18 | E10: BORDEREAU 0000000000 - POCHETTE 1203469177 | F10: 0000000 | G10: 0000000 | I10: 26
A11: 04 | B11: 2018-07-02 | C11: 2018-07-02 | D11: VERSEMENT ESPECE 28/06/18 | E11: BORDEREAU 0000000000 - POCHETTE 1203265905 | F11: 0000000 | G11: 0000000 | I11: 12.5
A12: 04 | B12: 2018-07-02 | C12: 2018-07-02 | D12: VERSEMENT ESPECE 28/06/18 | E12: BORDEREAU 0000000000 - POCHETTE 1203169790 | F12: 0000000 | G12: 0000000 | I12: 9.75
A13: 04 | B13: 2018-07-02 | C13: 2018-07-02 | D13: VERSEMENT ESPECE 28/06/18 | E13: BORDEREAU 0000000000 - POCHETTE 1203169787 | F13: 0000000 | G13: 0000000 | I13: 9
A14: 04 | B14: 2018-07-02 | C14: 2018-07-02 | D14: VERSEMENT ESPECE 28/06/18 | E14: BORDEREAU 0000000000 - POCHETTE 1203169808 | F14: 0000000 | G14: 0000000 | I14: 8.35
A15: 04 | B15: 2018-07-02 | C15: 2018-07-02 | D15: VERSEMENT ESPECE 28/06/18 | E15: BORDEREAU 0000000000 - POCHETTE 1203169789 | F15: 0000000 | G15: 0000000 | I15: 8.15
A16: 04 | B16: 2018-07-02 | C16: 2018-07-02 | D16: VERSEMENT ESPECE 28/05/18 | E16: BORDEREAU 0000000000 - POCHETTE 1203169784 | F16: 0000000 | G16: 0000000 | I16: 6
A17: 04 | B17: 2018-07-02 | C17: 2018-07-02 | D17: VERSEMENT ESPECE 28/06/18 | E17: BORDEREAU 0000000000 - POCHETTE 1203169783 | F17: 0000000 | G17: 0000000 | I17: 4.8
A18: 04 | B18: 2018-07-02 | C18: 2018-07-02 | D18: VERSEMENT ESPECE 28/06/18 | E18: BORDEREAU 0000000000 - POCHETTE 1201098584 | F18: 0000000 | G18: 0000000 | I18: 4.4
A19: 04 | B19: 2018-07-02 | C19: 2018-07-02 | D19: VERSEMENT ESPECE 28/06/18 | E19: BORDEREAU 0000000000 - POCHETTE 1203169786 | F19: 0000000 | G19: 0000000 | I19: 4.2
A20: 04 | B20: 2018-07-02 | C20: 2018-07-02 | D20: VERSEMENT ESPECE 28/06/18 | E20: BORDEREAU 0000000000 - POCHETTE 1203169781 | F20: 0000000 | G20: 0000000 | I20: 3.5
A21: 04 | B21: 2018-07-02 | C21: 2018-07-02 | D21: VERSEMENT ESPECE 28/06/18 | E21: BORDEREAU 0000000000 - POCHETTE 1203169780 | F21: 0000000 | G21: 0000000 | I21: 2.85
A22: 04 | B22: 2018-07-02 | C22: 2018-07-02 | D22: VERSEMENT ESPECE 28/06/18 | E22: BORDEREAU 0000000000 - POCHETTE 1203468459 | F22: 0000000 | G22: 0000000 | I22: 1.8
A23: 04 | B23: 2018-07-02 | C23: 2018-07-02 | D23: VERSEMENT ESPECE 28/06/18 | E23: BORDEREAU 0000000000 - POCHETTE 1203169785 | F23: 0000000 | G23: 0000000 | I23: 0.4
A24: 30 | B24: 2018-07-02 | C24: 2018-07-02 | D24: 01/07 KEOLIS RENNES 3659319001 | E24: 01/07 REM.ACH.CB405363659319001 | F24: 0040536 | G24: 0040536 | I24: 24592.25
A25: 30 | B25: 2018-07-02 | C25: 2018-07-02 | D25: 02/07 KEOLIS RENNES 3659319001 | E25: 02/07 REM.ACH.CB773023659319001 | F25: 0077302 | G25: 0077302 | I25: 27084.7
A26: 30 | B26: 2018-07-02 | C26: 2018-07-02 | D26: 02/07 KEOLIS RENNES 3659319002 | E26: 02/07 REM.ACH.CB905463659319002 | F26: 0090546 | G26: 0090546 | I26: 26424.03
A27: 30 | B27: 2018-07-02 | C27: 2018-07-02 | D27: 01/07 KEOLIS RENNES 3659319001 | E27: 01/07 REM.ACH.CB405363659319001 | F27: 0040536 | G27: 0040536 | I27: 68.6
A28: 30 | B28: 2018-07-02 | C28: 2018-07-02 | D28: 01/07 KEOLIS RENNES 3659319002 | E28: 01/07 REM.ACH.CB409113659319002 | F28: 0040911 | G28: 0040911 | I28: 21013.8
A29: 30 | B29: 2018-07-02 | C29: 2018-07-02 | D29: 01/07 KEOLIS RENNES 3659319032 | E29: 01/07 REM.ACH.CB409113659319032 | F29: 0040911 | G29: 0040911 | I29: 99.75
A30: 30 | B30: 2018-07-02 | C30: 2018-07-02 | D30: 01/07 STAR 3837085001 | E30: 01/07 REM.ACH.CB008283837085001 | F30: 0000828 | G30: 0000828 | I30: 4861.1
A31: 30 | B31: 2018-07-02 | C31: 2018-07-02 | D31: 29/06 KEOLIS RENNES 3625422003 | E31: 29/06 REM.ACH.CB956753625422003 | F31: 0095675 | G31: 0095675 | I31: 4291.9
A32: 30 | B32: 2018-07-02 | C32: 2018-07-02 | D32: 29/06 KEOLIS RENNES 3625422005 | E32: 29/06 REM.ACH.CB964663625422005 | F32: 0096466 | G32: 0096466 | I32: 2806.5
A33: 30 | B33: 2018-07-02 | C33: 2018-07-02 | D33: 29/06 KEOLIS RENNES 3625422002 | E33: 29/06 REM.ACH.CB979783625422002 | F33: 0097978 | G33: 0097978 | I33: 2766.6
A34: 30 | B34: 2018-07-02 | C34: 2018-07-02 | D34: 30/06 KEOLIS RENNES 3625422003 | E34: 30/06 REM.ACH.CB042653625422003 | F34: 0004265 | G34: 0004265 | I34: 2472.05
A35: 30 | B35: 2018-07-02 | C35: 2018-07-02 | D35: 30/06 KEOLIS RENNES 3625422005 | E35: 30/06 REM.ACH.CB087673625422005 | F35: 0008767 | G35: 0008767 | I35: 2247.08
A36: 30 | B36: 2018-07-02 | C36: 2018-07-02 | D36: 29/06 KEOLIS RENNES 3625422005 | E36: 29/06 REM.ACH.CB014373625422005 | F36: 0001437 | G36: 0001437 | I36: 2221.6
A37: 30 | B37: 2018-07-02 | C37: 2018-07-02 | D37: 30/06 STAR 3837085001 | E37: 30/06 REM.ACH.CB008283837085001 | F37: 0000828 | G37: 0000828 | I37: 2004.15
A38: 30 | B38: 2018-07-02 | C38: 2018-07-02 | D38: 29/06 KEOLIS RENNES 3625422001 | E38: 29/06 REM.ACH.CB941713625422001 | F38: 0094171 | G38: 0094171 | I38: 1983.95
A39: 30 | B39: 2018-07-02 | C39: 2018-07-02 | D39: 29/06 KEOLIS RENNES 3625422001 | E39: 29/06 REM.ACH.CB013803625422001 | F39: 0001380 | G39: 0001380 | I39: 1965.55
A40: 30 | B40: 2018-07-02 | C40: 2018-07-02 | D40: 30/06 KEOLIS RENNES 3625422020 | E40: 30/06 REM.ACH.CB544523625422020 | F40: 0054452 | G40: 0054452 | I40: 1819
A41: 30 | B41: 2018-07-02 | C41: 2018-07-02 | D41: 30/06 KEOLIS RENNES 3625422005 | E41: 30/06 REM.ACH.CB032593625422005 | F41: 0003259 | G41: 0003259 | I41: 1692.65
A42: 30 | B42: 2018-07-02 | C42: 2018-07-02 | D42: 29/06 KEOLIS RENNES 3625422001 | E42: 29/06 REM.ACH.CB941163625422001 | F42: 0094116 | G42: 0094116 | I42: 1588.05
A43: 30 | B43: 2018-07-02 | C43: 2018-07-02 | D43: 30/06 KEOLIS RENNES 3625422001 | E43: 30/06 REM.ACH.CB069803625422001 | F43: 0006980 | G43: 0006980 | I43: 1567.9
A44: 30 | B44: 2018-07-02 | C44: 2018-07-02 | D44: 29/06 KEOLIS RENNES 3625422003 | E44: 29/06 REM.ACH.CB012123625422003 | F44: 0001212 | G44: 0001212 | I44: 1553.93
A45: 30 | B45: 2018-07-02 | C45: 2018-07-02 | D45: 29/06 KEOLIS RENNES 3625422002 | E45: 29/06 REM.ACH.CB012113625422002 | F45: 0001211 | G45: 0001211 | I45: 1498.15
A46: 30 | B46: 2018-07-02 | C46: 2018-07-02 | D46: 30/06 KEOLIS RENNES 3625422002 | E46: 30/06 REM.ACH.CB064623625422002 | F46: 0006462 | G46: 0006462 | I46: 1418.15
A47: 30 | B47: 2018-07-02 | C47: 2018-07-02 | D47: 29/06 KEOLIS RENNES 3625422001 | E47: 29/06 REM.ACH.CB013023625422001 | F47: 0001302 | G47: 0001302 | I47: 1401.33
A48: 30 | B48: 2018-07-02 | C48: 2018-07-02 | D48: 30/06 KEOLIS RENNES 3625422001 | E48: 30/06 REM.ACH.CB037413625422001 | F48: 0003741 | G48: 0003741 | I48: 1392.1
A49: 30 | B49: 2018-07-02 | C49: 2018-07-02 | D49: 30/06 KEOLIS RENNES 3625422003 | E49: 30/06 REM.ACH.CB088613625422003 | F49: 0008861 | G49: 0008861 | I49: 1347.45
A50: 30 | B50: 2018-07-02 | C50: 2018-07-02 | D50: 30/06 KEOLIS RENNES 3625422001 | E50: 30/06 REM.ACH.CB021663625422001 | F50: 0002166 | G50: 0002166 | I50: 1192.3
A51: 30 | B51: 2018-07-02 | C51: 2018-07-02 | D51: 29/06 KEOLIS RENNES 3625422001 | E51: 29/06 REM.ACH.CB933573625422001 | F51: 0093357 | G51: 0093357 | I51: 1108.75
A52: 30 | B52: 2018-07-02 | C52: 2018-07-02 | D52: 29/06 STAR 3837085001 | E52: 29/06 REM.ACH.CB010913837085001 | F52: 0001091 | G52: 0001091 | I52: 1094.75
A53: 30 | B53: 2018-07-02 | C53: 2018-07-02 | D53: 29/06 KEOLIS RENNES 3625422001 | E53: 29/06 REM.ACH.CB071813625422001 | F53: 0007181 | G53: 0007181 | I53: 763.4
A54: 30 | B54: 2018-07-02 | C54: 2018-07-02 | D54: 30/06 KEOLIS RENNES 3625422002 | E54: 30/06 REM.ACH.CB089463625422002 | F54: 0008946 | G54: 0008946 | I54: 734.85
A55: 30 | B55: 2018-07-02 | C55: 2018-07-02 | D55: 30/06 KEOLIS RENNES 3625422001 | E55: 30/06 REM.ACH.CB069043625422001 | F55: 0006904 | G55: 0006904 | I55: 720.65
A56: 30 | B56: 2018-07-02 | C56: 2018-07-02 | D56: 30/06 KEOLIS RENNES 3625422001 | E56: 30/06 REM.ACH.CB028783625422001 | F56: 0002878 | G56: 0002878 | I56: 602.15
A57: 30 | B57: 2018-07-02 | C57: 2018-07-02 | D57: 29/06 KEOLIS RENNES 3625422001 | E57: 29/06 REM.ACH.CB951883625422001 | F57: 0095188 | G57: 0095188 | I57: 581.5
A58: 30 | B58: 2018-07-02 | C58: 2018-07-02 | D58: 30/06 KEOLIS RENNES 3625422001 | E58: 30/06 REM.ACH.CB087773625422001 | F58: 0008777 | G58: 0008777 | I58: 581.2
A59: 30 | B59: 2018-07-02 | C59: 2018-07-02 | D59: 29/06 KEOLIS RENNES 3625422001 | E59: 29/06 REM.ACH.CB984413625422001 | F59: 0098441 | G59: 0098441 | I59: 568.4
A60: 30 | B60: 2018-07-02 | C60: 2018-07-02 | D60: 30/06 KEOLIS RENNES 3625422002 | E60: 30/06 REM.ACH.CB027653625422002 | F60: 0002765 | G60: 0002765 | I60: 566.75
A61: 30 | B61: 2018-07-02 | C61: 2018-07-02 | D61: 29/06 KEOLIS RENNES 3625422001 | E61: 29/06 REM.ACH.CB024923625422001 | F61: 0002492 | G61: 0002492 | I61: 447
A62: 30 | B62: 2018-07-02 | C62: 2018-07-02 | D62: 01/07 KEOLIS RENNES 3625421012 | E62: 01/07 REM.ACH.CB791893625421012 | F62: 0079189 | G62: 0079189 | I62: 429.5
A63: 30 | B63: 2018-07-02 | C63: 2018-07-02 | D63: 30/06 KEOLIS RENNES 3625421002 | E63: 30/06 REM.ACH.CB818253625421002 | F63: 0081825 | G63: 0081825 | I63: 404.5
A64: 30 | B64: 2018-07-02 | C64: 2018-07-02 | D64: 30/06 KEOLIS RENNES 3625421001 | E64: 30/06 REM.ACH.CB818143625421001 | F64: 0081814 | G64: 0081814 | I64: 395
A65: 30 | B65: 2018-07-02 | C65: 2018-07-02 | D65: 30/06 KEOLIS RENNES 3625421009 | E65: 30/06 REM.ACH.CB819333625421009 | F65: 0081933 | G65: 0081933 | I65: 361.5
A66: 30 | B66: 2018-07-02 | C66: 2018-07-02 | D66: 30/06 KEOLIS RENNES 3625421014 | E66: 30/06 REM.ACH.CB823913625421014 | F66: 0082391 | G66: 0082391 | I66: 258
A67: 30 | B67: 2018-07-02 | C67: 2018-07-02 | D67: 30/06 KEOLIS RENNES 3625421005 | E67: 30/06 REM.ACH.CB833193625421005 | F67: 0083319 | G67: 0083319 | I67: 206.5
A68: 30 | B68: 2018-07-02 | C68: 2018-07-02 | D68: 02/07 KEOLIS RENNES 3659319006 | E68: 02/07 REM.ACH.CB905463659319006 | F68: 0090546 | G68: 0090546 | I68: 202.85
A69: 30 | B69: 2018-07-02 | C69: 2018-07-02 | D69: 01/07 KEOLIS RENNES 3625422001 | E69: 01/07 REM.ACH.CB518013625422001 | F69: 0051801 | G69: 0051801 | I69: 200
A70: 30 | B70: 2018-07-02 | C70: 2018-07-02 | D70: 30/06 KEOLIS RENNES 3625421007 | E70: 30/06 REM.ACH.CB820943625421007 | F70: 0082094 | G70: 0082094 | I70: 189.5
A71: 30 | B71: 2018-07-02 | C71: 2018-07-02 | D71: 02/07 KEOLIS RENNES 3625421002 | E71: 02/07 REM.ACH.CB519913625421002 | F71: 0051991 | G71: 0051991 | I71: 180
A72: 30 | B72: 2018-07-02 | C72: 2018-07-02 | D72: 01/07 KEOLIS RENNES 3625421005 | E72: 01/07 REM.ACH.CB804863625421005 | F72: 0080486 | G72: 0080486 | I72: 172
A73: 30 | B73: 2018-07-02 | C73: 2018-07-02 | D73: 30/06 KEOLIS RENNES 3625421003 | E73: 30/06 REM.ACH.CB818043625421003 | F73: 0081804 | G73: 0081804 | I73: 155
A74: 30 | B74: 2018-07-02 | C74: 2018-07-02 | D74: 01/07 KEOLIS RENNES 3625422020 | E74: 01/07 REM.ACH.CB560833625422020 | F74: 0056083 | G74: 0056083 | I74: 145
A75: 30 | B75: 2018-07-02 | C75: 2018-07-02 | D75: 30/06 KEOLIS RENNES 3625421013 | E75: 30/06 REM.ACH.CB820033625421013 | F75: 0082003 | G75: 0082003 | I75: 137.5
A76: 30 | B76: 2018-07-02 | C76: 2018-07-02 | D76: 01/07 KEOLIS RENNES 3659319036 | E76: 01/07 REM.ACH.CB409113659319036 | F76: 0040911 | G76: 0040911 | I76: 1.5
A77: 30 | B77: 2018-07-02 | C77: 2018-07-02 | D77: 29/06 KEOLIS RENNES 3625422005 | E77: 29/06 REM.ACH.CB964773625422005 | F77: 0096477 | G77: 0096477 | I77: 121.7
A78: 30 | B78: 2018-07-02 | C78: 2018-07-02 | D78: 01/07 KEOLIS RENNES 3625421014 | E78: 01/07 REM.ACH.CB797353625421014 | F78: 0079735 | G78: 0079735 | I78: 120.5
A79: 30 | B79: 2018-07-02 | C79: 2018-07-02 | D79: 30/06 KEOLIS RENNES 3625421004 | E79: 30/06 REM.ACH.CB821493625421004 | F79: 0082149 | G79: 0082149 | I79: 120.5
A80: 30 | B80: 2018-07-02 | C80: 2018-07-02 | D80: 29/06 KEOLIS RENNES 3625422001 | E80: 29/06 REM.ACH.CB951903625422001 | F80: 0095190 | G80: 0095190 | I80: 22.2
A81: 30 | B81: 2018-07-02 | C81: 2018-07-02 | D81: 01/07 KEOLIS RENNES 3625421004 | E81: 01/07 REM.ACH.CB793083625421004 | F81: 0079308 | G81: 0079308 | I81: 103.5
A82: 30 | B82: 2018-07-02 | C82: 2018-07-02 | D82: 30/06 KEOLIS RENNES 3625421002 | E82: 30/06 REM.ACH.CB819073625421002 | F82: 0081907 | G82: 0081907 | I82: 25
A83: 30 | B83: 2018-07-02 | C83: 2018-07-02 | D83: 30/06 KEOLIS RENNES 3625422002 | E83: 30/06 REM.ACH.CB065443625422002 | F83: 0006544 | G83: 0006544 | I83: 86.85
A84: 30 | B84: 2018-07-02 | C84: 2018-07-02 | D84: 30/06 KEOLIS RENNES 3625421006 | E84: 30/06 REM.ACH.CB820583625421006 | F84: 0082058 | G84: 0082058 | I84: 86
A85: 30 | B85: 2018-07-02 | C85: 2018-07-02 | D85: 01/07 KEOLIS RENNES 3625421009 | E85: 01/07 REM.ACH.CB791753625421009 | F85: 0079175 | G85: 0079175 | I85: 69
A86: 30 | B86: 2018-07-02 | C86: 2018-07-02 | D86: 30/06 KEOLIS RENNES 3659319001 | E86: 30/06 REM.ACH.CB933403659319001 | F86: 0093340 | G86: 0093340 | I86: 108.55
A87: 30 | B87: 2018-07-02 | C87: 2018-07-02 | D87: 29/06 KEOLIS RENNES 3625422002 | E87: 29/06 REM.ACH.CB979833625422002 | F87: 0097983 | G87: 0097983 | I87: 66.65
A88: 30 | B88: 2018-07-02 | C88: 2018-07-02 | D88: 30/06 KEOLIS RENNES 3625422003 | E88: 30/06 REM.ACH.CB052143625422003 | F88: 0005214 | G88: 0005214 | I88: 64.35
A89: 30 | B89: 2018-07-02 | C89: 2018-07-02 | D89: 29/06 KEOLIS RENNES 3625422003 | E89: 29/06 REM.ACH.CB956863625422003 | F89: 0095686 | G89: 0095686 | I89: 55.1
A90: 30 | B90: 2018-07-02 | C90: 2018-07-02 | D90: 29/06 KEOLIS RENNES 3625422005 | E90: 29/06 REM.ACH.CB016203625422005 | F90: 0001620 | G90: 0001620 | I90: 52.6
A91: 30 | B91: 2018-07-02 | C91: 2018-07-02 | D91: 01/07 KEOLIS RENNES 3625421013 | E91: 01/07 REM.ACH.CB790963625421013 | F91: 0079096 | G91: 0079096 | I91: 51.5
A92: 30 | B92: 2018-07-02 | C92: 2018-07-02 | D92: 30/06 KEOLIS RENNES 3625422005 | E92: 30/06 REM.ACH.CB032693625422005 | F92: 0003269 | G92: 0003269 | I92: 49.65
A93: 30 | B93: 2018-07-02 | C93: 2018-07-02 | D93: 01/07 KEOLIS RENNES 3625422020 | E93: 01/07 REM.ACH.CB571853625422020 | F93: 0057185 | G93: 0057185 | I93: 40
A94: 30 | B94: 2018-07-02 | C94: 2018-07-02 | D94: 30/06 KEOLIS RENNES 3625422001 | E94: 30/06 REM.ACH.CB037513625422001 | F94: 0003751 | G94: 0003751 | I94: 39
A95: 30 | B95: 2018-07-02 | C95: 2018-07-02 | D95: 02/07 KEOLIS RENNES 3659319023 | E95: 02/07 REM.ACH.CB773023659319023 | F95: 0077302 | G95: 0077302 | I95: 36.8
A96: 30 | B96: 2018-07-02 | C96: 2018-07-02 | D96: 01/07 KEOLIS RENNES 3625421007 | E96: 01/07 REM.ACH.CB791213625421007 | F96: 0079121 | G96: 0079121 | I96: 34.5
A97: 30 | B97: 2018-07-02 | C97: 2018-07-02 | D97: 30/06 KEOLIS RENNES 3625422006 | E97: 30/06 REM.ACH.CB088933625422006 | F97: 0008893 | G97: 0008893 | I97: 32.6
A98: 30 | B98: 2018-07-02 | C98: 2018-07-02 | D98: 29/06 KEOLIS RENNES 3625422001 | E98: 29/06 REM.ACH.CB969423625422001 | F98: 0096942 | G98: 0096942 | I98: 32.6
A99: 30 | B99: 2018-07-02 | C99: 2018-07-02 | D99: 29/06 KEOLIS RENNES 3625422003 | E99: 29/06 REM.ACH.CB012543625422003 | F99: 0001254 | G99: 0001254 | I99: 32.2
A100: 30 | B100: 2018-07-02 | C100: 2018-07-02 | D100: 29/06 KEOLIS RENNES 3625422001 | E100: 29/06 REM.ACH.CB941843625422001 | F100: 0094184 | G100: 0094184 | I100: 30.55
A101: 30 | B101: 2018-07-02 | C101: 2018-07-02 | D101: 30/06 KEOLIS RENNES 3625421001 | E101: 30/06 REM.ACH.CB818903625421001 | F101: 0081890 | G101: 0081890 | I101: 29
A102: 30 | B102: 2018-07-02 | C102: 2018-07-02 | D102: 29/06 KEOLIS RENNES 3625422001 | E102: 29/06 REM.ACH.CB013983625422001 | F102: 0001398 | G102: 0001398 | I102: 26.1
A103: 30 | B103: 2018-07-02 | C103: 2018-07-02 | D103: 30/06 KEOLIS RENNES 3659319002 | E103: 30/06 REM.ACH.CB447973659319002 | F103: 0044797 | G103: 0044797 | I103: 24660.15
A104: 30 | B104: 2018-07-02 | C104: 2018-07-02 | D104: 30/06 KEOLIS RENNES 3625422002 | E104: 30/06 REM.ACH.CB089553625422002 | F104: 0008955 | G104: 0008955 | I104: 24.45
A105: 30 | B105: 2018-07-02 | C105: 2018-07-02 | D105: 29/06 KEOLIS RENNES 3625422002 | E105: 29/06 REM.ACH.CB012393625422002 | F105: 0001239 | G105: 0001239 | I105: 23.4
A106: 30 | B106: 2018-07-02 | C106: 2018-07-02 | D106: 30/06 KEOLIS RENNES 3659319026 | E106: 30/06 REM.ACH.CB447973659319026 | F106: 0044797 | G106: 0044797 | I106: 132.6
A107: 30 | B107: 2018-07-02 | C107: 2018-07-02 | D107: 30/06 KEOLIS RENNES 3625422001 | E107: 30/06 REM.ACH.CB069863625422001 | F107: 0006986 | G107: 0006986 | I107: 21.95
A108: 30 | B108: 2018-07-02 | C108: 2018-07-02 | D108: 29/06 KEOLIS RENNES 3625422001 | E108: 29/06 REM.ACH.CB014963625422001 | F108: 0001496 | G108: 0001496 | I108: 20
A109: 30 | B109: 2018-07-02 | C109: 2018-07-02 | D109: 29/06 KEOLIS RENNES 3625422001 | E109: 29/06 REM.ACH.CB933623625422001 | F109: 0093362 | G109: 0093362 | I109: 19.25
A110: 30 | B110: 2018-07-02 | C110: 2018-07-02 | D110: 30/06 KEOLIS RENNES 3625422001 | E110: 30/06 REM.ACH.CB087873625422001 | F110: 0008787 | G110: 0008787 | I110: 17.45
A111: 30 | B111: 2018-07-02 | C111: 2018-07-02 | D111: 30/06 KEOLIS RENNES 3625422001 | E111: 30/06 REM.ACH.CB069183625422001 | F111: 0006918 | G111: 0006918 | I111: 16.35
A112: 30 | B112: 2018-07-02 | C112: 2018-07-02 | D112: 30/06 KEOLIS RENNES 3625422001 | E112: 30/06 REM.ACH.CB021713625422001 | F112: 0002171 | G112: 0002171 | I112: 15.4
A113: 30 | B113: 2018-07-02 | C113: 2018-07-02 | D113: 30/06 KEOLIS RENNES 3625422002 | E113: 30/06 REM.ACH.CB027703625422002 | F113: 0002770 | G113: 0002770 | I113: 14.5
A114: 30 | B114: 2018-07-02 | C114: 2018-07-02 | D114: 29/06 KEOLIS RENNES 3625422001 | E114: 29/06 REM.ACH.CB984493625422001 | F114: 0098449 | G114: 0098449 | I114: 13.05
A115: 30 | B115: 2018-07-02 | C115: 2018-07-02 | D115: 30/06 KEOLIS RENNES 3625422003 | E115: 30/06 REM.ACH.CB052193625422003 | F115: 0005219 | G115: 0005219 | I115: 10
A116: 30 | B116: 2018-07-02 | C116: 2018-07-02 | D116: 30/06 KEOLIS RENNES 3625422020 | E116: 30/06 REM.ACH.CB555983625422020 | F116: 0055598 | G116: 0055598 | I116: 10
A117: 30 | B117: 2018-07-02 | C117: 2018-07-02 | D117: 30/06 KEOLIS RENNES 3625422001 | E117: 30/06 REM.ACH.CB028833625422001 | F117: 0002883 | G117: 0002883 | I117: 7.5
A118: 30 | B118: 2018-07-02 | C118: 2018-07-02 | D118: 30/06 KEOLIS RENNES 3659319031 | E118: 30/06 REM.ACH.CB933403659319031 | F118: 0093340 | G118: 0093340 | I118: 28131.25
A119: 30 | B119: 2018-07-02 | C119: 2018-07-02 | D119: 30/06 KEOLIS RENNES 3659319036 | E119: 30/06 REM.ACH.CB447973659319036 | F119: 0044797 | G119: 0044797 | I119: 3
A120: 18 | B120: 2018-07-02 | C120: 2018-07-02 | E120: VIRT FACT DIVERS K/000050 | F120: 0000000 | G120: 0000000 | I120: 326.25
A121: 36 | B121: 2018-07-02 | C121: 2018-07-02 | D121: 30/06 KEOLIS RENNES 3625422001 | E121: 30/06 FACT.CR.CB069043625422001 | F121: 0006904 | G121: 0006904 | H121: 3
A122: 95 | B122: 2018-07-02 | C122: 2018-07-02 | D122: A | F122: 1223444 | G122: 1223444 | H122: 212950.48
A123: 04 | B123: 2018-07-03 | C123: 2018-07-03 | D123: VERSEMENT ESPECE 02/07/18 | E123: BORDEREAU 0000000000 - POCHETTE 1103403744 | F123: 0000000 | G123: 0000000 | I123: 7680
A124: 04 | B124: 2018-07-03 | C124: 2018-07-03 | D124: VERSEMENT ESPECE 02/07/18 | E124: BORDEREAU 0000000000 - POCHETTE 1103403743 | F124: 0000000 | G124: 0000000 | I124: 7105
A125: 04 | B125: 2018-07-03 | C125: 2018-07-03 | D125: VERSEMENT ESPECE 29/06/18 | E125: BORDEREAU 0000000000 - POCHETTE 1101271482 | F125: 0000000 | G125: 0000000 | I125: 5740
A126: 04 | B126: 2018-07-03 | C126: 2018-07-03 | D126: VERSEMENT ESPECE 29/06/18 | E126: BORDEREAU 0000000000 - POCHETTE 0000014821 | F126: 0000000 | G126: 0000000 | I126: 4176.73
A127: 04 | B127: 2018-07-03 | C127: 2018-07-03 | D127: VERSEMENT ESPECE 02/07/18 | E127: BORDEREAU 0000000000 - POCHETTE 0000014818 | F127: 0000000 | G127: 0000000 | I127: 4070
A128: 04 | B128: 2018-07-03 | C128: 2018-07-03 | D128: VERSEMENT ESPECE 02/07/18 | E128: BORDEREAU 0000000000 - POCHETTE 1901024824 | F128: 0000000 | G128: 0000000 | I128: 3513.93
A129: 04 | B129: 2018-07-03 | C129: 2018-07-03 | D129: VERSEMENT ESPECE 30/06/18 | E129: BORDEREAU 0000000000 - POCHETTE 1900889378 | F129: 0000000 | G129: 0000000 | I129: 2201.98
A130: 04 | B130: 2018-07-03 | C130: 2018-07-03 | D130: VERSEMENT ESPECE 02/07/18 | E130: BORDEREAU 0000000000 - POCHETTE 2003165850 | F130: 0000000 | G130: 0000000 | I130: 660
A131: 04 | B131: 2018-07-03 | C131: 2018-07-03 | D131: VERSEMENT ESPECE 02/07/18 | E131: BORDEREAU 0000000000 - POCHETTE 2003404650 | F131: 0000000 | G131: 0000000 | I131: 645
A132: 04 | B132: 2018-07-03 | C132: 2018-07-03 | D132: VERSEMENT ESPECE 02/07/18 | E132: BORDEREAU 0000000000 - POCHETTE 2003165851 | F132: 0000000 | G132: 0000000 | I132: 610
A133: 04 | B133: 2018-07-03 | C133: 2018-07-03 | D133: VERSEMENT ESPECE 02/07/18 | E133: BORDEREAU 0000000000 - POCHETTE 2003404842 | F133: 0000000 | G133: 0000000 | I133: 560
A134: 04 | B134: 2018-07-03 | C134: 2018-07-03 | D134: VERSEMENT ESPECE 02/07/18 | E134: BORDEREAU 0000000000 - POCHETTE 2003404651 | F134: 0000000 | G134: 0000000 | I134: 525
A135: 04 | B135: 2018-07-03 | C135: 2018-07-03 | D135: VERSEMENT ESPECE 02/07/18 | E135: BORDEREAU 0000000000 - POCHETTE 2003404652 | F135: 0000000 | G135: 0000000 | I135: 470
A136: 04 | B136: 2018-07-03 | C136: 2018-07-03 | D136: VERSEMENT ESPECE 29/06/18 | E136: BORDEREAU 0000000000 - POCHETTE 0072003404 | F136: 0000000 | G136: 0000000 | I136: 440
A137: 04 | B137: 2018-07-03 | C137: 2018-07-03 | D137: VERSEMENT ESPECE 02/07/18 | E137: BORDEREAU 0000000000 - POCHETTE 2000847676 | F137: 0000000 | G137: 0000000 | I137: 435
A138: 04 | B138: 2018-07-03 | C138: 2018-07-03 | D138: VERSEMENT ESPECE 29/06/18 | E138: BORDEREAU 0000000000 - POCHETTE 2003166055 | F138: 0000000 | G138: 0000000 | I138: 430
A139: 04 | B139: 2018-07-03 | C139: 2018-07-03 | D139: VERSEMENT ESPECE 29/06/18 | E139: BORDEREAU 0000000000 - POCHETTE 2003165858 | F139: 0000000 | G139: 0000000 | I139: 410
A140: 04 | B140: 2018-07-03 | C140: 2018-07-03 | D140: VERSEMENT ESPECE 02/07/18 | E140: BORDEREAU 0000000000 - POCHETTE 2003404653 | F140: 0000000 | G140: 0000000 | I140: 390
A141: 04 | B141: 2018-07-03 | C141: 2018-07-03 | D141: VERSEMENT ESPECE 29/06/18 | E141: BORDEREAU 0000000000 - POCHETTE 2003165861 | F141: 0000000 | G141: 0000000 | I141: 355
A142: 04 | B142: 2018-07-03 | C142: 2018-07-03 | D142: VERSEMENT ESPECE 02/07/18 | E142: BORDEREAU 0000000000 - POCHETTE 2003404645 | F142: 0000000 | G142: 0000000 | I142: 340
A143: 04 | B143: 2018-07-03 | C143: 2018-07-03 | D143: VERSEMENT ESPECE 02/07/18 | E143: BORDEREAU 0000000000 - POCHETTE 2003165853 | F143: 0000000 | G143: 0000000 | I143: 325
A144: 04 | B144: 2018-07-03 | C144: 2018-07-03 | D144: VERSEMENT ESPECE 29/06/18 | E144: BORDEREAU 0000000000 - POCHETTE 2003165782 | F144: 0000000 | G144: 0000000 | I144: 270
A145: 04 | B145: 2018-07-03 | C145: 2018-07-03 | D145: VERSEMENT ESPECE 29/06/18 | E145: BORDEREAU 0000000000 - POCHETTE 2003165864 | F145: 0000000 | G145: 0000000 | I145: 250
A146: 04 | B146: 2018-07-03 | C146: 2018-07-03 | D146: VERSEMENT ESPECE 02/07/18 | E146: BORDEREAU 0000000000 - POCHETTE 2003166054 | F146: 0000000 | G146: 0000000 | I146: 220
A147: 04 | B147: 2018-07-03 | C147: 2018-07-03 | D147: VERSEMENT ESPECE 29/06/18 | E147: BORDEREAU 0000000000 - POCHETTE 2003169965 | F147: 0000000 | G147: 0000000 | I147: 210
A148: 04 | B148: 2018-07-03 | C148: 2018-07-03 | D148: VERSEMENT ESPECE 29/06/18 | E148: BORDEREAU 0000000000 - POCHETTE 2003165856 | F148: 0000000 | G148: 0000000 | I148: 200
A149: 04 | B149: 2018-07-03 | C149: 2018-07-03 | D149: VERSEMENT ESPECE 29/06/18 | E149: BORDEREAU 0000000000 - POCHETTE 2003165865 | F149: 0000000 | G149: 0000000 | I149: 190
A150: 04 | B150: 2018-07-03 | C150: 2018-07-03 | D150: VERSEMENT ESPECE 29/06/18 | E150: BORDEREAU 0000000000 - POCHETTE 2003169785 | F150: 0000000 | G150: 0000000 | I150: 190
A151: 04 | B151: 2018-07-03 | C151: 2018-07-03 | D151: VERSEMENT ESPECE 02/07/18 | E151: BORDEREAU 0000000000 - POCHETTE 2003165852 | F151: 0000000 | G151: 0000000 | I151: 180
A152: 04 | B152: 2018-07-03 | C152: 2018-07-03 | D152: VERSEMENT ESPECE 02/07/18 | E152: BORDEREAU 0000000000 - POCHETTE 2003404642 | F152: 0000000 | G152: 0000000 | I152: 170
A153: 04 | B153: 2018-07-03 | C153: 2018-07-03 | D153: VERSEMENT ESPECE 02/07/18 | E153: BORDEREAU 0000000000 - POCHETTE 2003404643 | F153: 0000000 | G153: 0000000 | I153: 165
A154: 04 | B154: 2018-07-03 | C154: 2018-07-03 | D154: VERSEMENT ESPECE 02/07/18 | E154: BORDEREAU 0000000000 - POCHETTE 1203169821 | F154: 0000000 | G154: 0000000 | I154: 161.8
A155: 04 | B155: 2018-07-03 | C155: 2018-07-03 | D155: VERSEMENT ESPECE 29/06/18 | E155: BORDEREAU 0000000000 - POCHETTE 2003165859 | F155: 0000000 | G155: 0000000 | I155: 155
A156: 04 | B156: 2018-07-03 | C156: 2018-07-03 | D156: VERSEMENT ESPECE 29/06/18 | E156: BORDEREAU 0000000000 - POCHETTE 2003165863 | F156: 0000000 | G156: 0000000 | I156: 140
A157: 04 | B157: 2018-07-03 | C157: 2018-07-03 | D157: VERSEMENT ESPECE 02/07/18 | E157: BORDEREAU 0000000000 - POCHETTE 2003404654 | F157: 0000000 | G157: 0000000 | I157: 140
A158: 04 | B158: 2018-07-03 | C158: 2018-07-03 | D158: VERSEMENT ESPECE 29/06/18 | E158: BORDEREAU 0000000000 - POCHETTE 2003165854 | F158: 0000000 | G158: 0000000 | I158: 130
A159: 04 | B159: 2018-07-03 | C159: 2018-07-03 | D159: VERSEMENT ESPECE 02/07/18 | E159: BORDEREAU 0000000000 - POCHETTE 2003404647 | F159: 0000000 | G159: 0000000 | I159: 120
A160: 04 | B160: 2018-07-03 | C160: 2018-07-03 | D160: VERSEMENT ESPECE 02/07/18 | E160: BORDEREAU 0000000000 - POCHETTE 2003169783 | F160: 0000000 | G160: 0000000 | I160: 120
A161: 04 | B161: 2018-07-03 | C161: 2018-07-03 | D161: VERSEMENT ESPECE 29/06/18 | E161: BORDEREAU 0000000000 - POCHETTE 2003404806 | F161: 0000000 | G161: 0000000 | I161: 115
A162: 04 | B162: 2018-07-03 | C162: 2018-07-03 | D162: VERSEMENT ESPECE 02/07/18 | E162: BORDEREAU 0000000000 - POCHETTE 2003404649 | F162: 0000000 | G162: 0000000 | I162: 115
A163: 04 | B163: 2018-07-03 | C163: 2018-07-03 | D163: VERSEMENT ESPECE 02/07/18 | E163: BORDEREAU 0000000000 - POCHETTE 2003404641 | F163: 0000000 | G163: 0000000 | I163: 110
A164: 04 | B164: 2018-07-03 | C164: 2018-07-03 | D164: VERSEMENT ESPECE 02/07/18 | E164: BORDEREAU 0000000000 - POCHETTE 1203169827 | F164: 0000000 | G164: 0000000 | I164: 105.5
A165: 04 | B165: 2018-07-03 | C165: 2018-07-03 | D165: VERSEMENT ESPECE 02/07/18 | E165: BORDEREAU 0000000000 - POCHETTE 2003404646 | F165: 0000000 | G165: 0000000 | I165: 100
A166: 04 | B166: 2018-07-03 | C166: 2018-07-03 | D166: VERSEMENT ESPECE 29/06/18 | E166: BORDEREAU 0000000000 - POCHETTE 2003404805 | F166: 0000000 | G166: 0000000 | I166: 95
A167: 04 | B167: 2018-07-03 | C167: 2018-07-03 | D167: VERSEMENT ESPECE 29/06/18 | E167: BORDEREAU 0000000000 - POCHETTE 2003404807 | F167: 0000000 | G167: 0000000 | I167: 85
A168: 04 | B168: 2018-07-03 | C168: 2018-07-03 | D168: VERSEMENT ESPECE 29/06/18 | E168: BORDEREAU 0000000000 - POCHETTE 2003165857 | F168: 0000000 | G168: 0000000 | I168: 80
A169: 04 | B169: 2018-07-03 | C169: 2018-07-03 | D169: VERSEMENT ESPECE 29/06/18 | E169: BORDEREAU 0000000000 - POCHETTE 2003165855 | F169: 0000000 | G169: 0000000 | I169: 80
A170: 04 | B170: 2018-07-03 | C170: 2018-07-03 | D170: VERSEMENT ESPECE 29/06/18 | E170: BORDEREAU 0000000000 - POCHETTE 2003404810 | F170: 0000000 | G170: 0000000 | I170: 70
A171: 04 | B171: 2018-07-03 | C171: 2018-07-03 | D171: VERSEMENT ESPECE 02/07/18 | E171: BORDEREAU 0000000000 - POCHETTE 2003404648 | F171: 0000000 | G171: 0000000 | I171: 70
A172: 04 | B172: 2018-07-03 | C172: 2018-07-03 | D172: VERSEMENT ESPECE 02/07/18 | E172: BORDEREAU 0000000000 - POCHETTE 1203169826 | F172: 0000000 | G172: 0000000 | I172: 68
A173: 04 | B173: 2018-07-03 | C173: 2018-07-03 | D173: VERSEMENT ESPECE 29/06/18 | E173: BORDEREAU 0000000000 - POCHETTE 2003165862 | F173: 0000000 | G173: 0000000 | I173: 30
A174: 04 | B174: 2018-07-03 | C174: 2018-07-03 | D174: VERSEMENT ESPECE 29/06/18 | E174: BORDEREAU 0000000000 - POCHETTE 1203169793 | F174: 0000000 | G174: 0000000 | I174: 22.65
A175: 04 | B175: 2018-07-03 | C175: 2018-07-03 | D175: VERSEMENT ESPECE 02/07/18 | E175: BORDEREAU 0000000000 - POCHETTE 1202635650 | F175: 0000000 | G175: 0000000 | I175: 8
A176: 04 | B176: 2018-07-03 | C176: 2018-07-03 | D176: VERSEMENT ESPECE 29/06/18 | E176: BORDEREAU 0000000000 - POCHETTE 1203468892 | F176: 0000000 | G176: 0000000 | I176: 5.5
A177: 04 | B177: 2018-07-03 | C177: 2018-07-03 | D177: VERSEMENT ESPECE 30/06/18 | E177: BORDEREAU 0000000000 - POCHETTE 1203169830 | F177: 0000000 | G177: 0000000 | I177: 5.45
A178: 04 | B178: 2018-07-03 | C178: 2018-07-03 | D178: VERSEMENT ESPECE 30/06/18 | E178: BORDEREAU 0000000000 - POCHETTE 1203169825 | F178: 0000000 | G178: 0000000 | I178: 4.2
A179: 04 | B179: 2018-07-03 | C179: 2018-07-03 | D179: VERSEMENT ESPECE 30/06/18 | E179: BORDEREAU 0000000000 - POCHETTE 1203169823 | F179: 0000000 | G179: 0000000 | I179: 4.2
A180: 04 | B180: 2018-07-03 | C180: 2018-07-03 | D180: VERSEMENT ESPECE 30/06/18 | E180: BORDEREAU 0000000000 - POCHETTE 1203169832 | F180: 0000000 | G180: 0000000 | I180: 4.2
A181: 04 | B181: 2018-07-03 | C181: 2018-07-03 | D181: VERSEMENT ESPECE 29/06/18 | E181: BORDEREAU 0000000000 - POCHETTE 1203468460 | F181: 0000000 | G181: 0000000 | I181: 4.1
A182: 04 | B182: 2018-07-03 | C182: 2018-07-03 | D182: VERSEMENT ESPECE 30/06/18 | E182: BORDEREAU 0000000000 - POCHETTE 1203169831 | F182: 0000000 | G182: 0000000 | I182: 3.95
A183: 04 | B183: 2018-07-03 | C183: 2018-07-03 | D183: VERSEMENT ESPECE 29/06/18 | E183: BORDEREAU 0000000000 - POCHETTE 1203169791 | F183: 0000000 | G183: 0000000 | I183: 3.35
A184: 04 | B184: 2018-07-03 | C184: 2018-07-03 | D184: VERSEMENT ESPECE 29/06/18 | E184: BORDEREAU 0000000000 - POCHETTE 1203169822 | F184: 0000000 | G184: 0000000 | I184: 3
A185: 04 | B185: 2018-07-03 | C185: 2018-07-03 | D185: VERSEMENT ESPECE 29/06/18 | E185: BORDEREAU 0000000000 - POCHETTE 1203169792 | F185: 0000000 | G185: 0000000 | I185: 2.65
A186: 04 | B186: 2018-07-03 | C186: 2018-07-03 | D186: VERSEMENT ESPECE 02/07/18 | E186: BORDEREAU 0000000000 - POCHETTE 1203169829 | F186: 0000000 | G186: 0000000 | I186: 1.65
A187: 04 | B187: 2018-07-03 | C187: 2018-07-03 | D187: VERSEMENT ESPECE 26/06/18 | E187: BORDEREAU 0000000000 - POCHETTE 1202333058 | F187: 0000000 | G187: 0000000 | I187: 1.4
A188: 04 | B188: 2018-07-03 | C188: 2018-07-03 | D188: VERSEMENT ESPECE 30/06/18 | E188: BORDEREAU 0000000000 - POCHETTE 1203169828 | F188: 0000000 | G188: 0000000 | I188: 1.1
A189: 04 | B189: 2018-07-03 | C189: 2018-07-03 | D189: VERSEMENT ESPECE 02/07/18 | E189: BORDEREAU 0000000000 - POCHETTE 1203169833 | F189: 0000000 | G189: 0000000 | I189: 0.65
A190: 04 | B190: 2018-07-03 | C190: 2018-07-03 | D190: VERSEMENT ESPECE 30/06/18 | E190: BORDEREAU 0000000000 - POCHETTE 1203169824 | F190: 0000000 | G190: 0000000 | I190: 0.3
A191: 04 | B191: 2018-07-03 | C191: 2018-07-03 | D191: VERSEMENT ESPECE 29/06/18 | E191: BORDEREAU 0000000000 - POCHETTE 1203169794 | F191: 0000000 | G191: 0000000 | I191: 0.13
A192: 30 | B192: 2018-07-03 | C192: 2018-07-03 | D192: 03/07 KEOLIS RENNES 3659319021 | E192: 03/07 REM.ACH.CB377053659319021 | F192: 0037705 | G192: 0037705 | I192: 75693.88
A193: 30 | B193: 2018-07-03 | C193: 2018-07-03 | D193: 03/07 KEOLIS RENNES 3659319002 | E193: 03/07 REM.ACH.CB378043659319002 | F193: 0037804 | G193: 0037804 | I193: 63348.55
A194: 30 | B194: 2018-07-03 | C194: 2018-07-03 | D194: 02/07 STAR 3837085001 | E194: 02/07 REM.ACH.CB011433837085001 | F194: 0001143 | G194: 0001143 | I194: 4154.7
A195: 30 | B195: 2018-07-03 | C195: 2018-07-03 | D195: 02/07 KEOLIS RENNES 3625422001 | E195: 02/07 REM.ACH.CB547013625422001 | F195: 0054701 | G195: 0054701 | I195: 3980.8
A196: 30 | B196: 2018-07-03 | C196: 2018-07-03 | D196: 02/07 KEOLIS RENNES 3625422001 | E196: 02/07 REM.ACH.CB612543625422001 | F196: 0061254 | G196: 0061254 | I196: 2865.05
A197: 30 | B197: 2018-07-03 | C197: 2018-07-03 | D197: 02/07 KEOLIS RENNES 3625422001 | E197: 02/07 REM.ACH.CB547153625422001 | F197: 0054715 | G197: 0054715 | I197: 2854.35
A198: 30 | B198: 2018-07-03 | C198: 2018-07-03 | D198: 02/07 KEOLIS RENNES 3625422002 | E198: 02/07 REM.ACH.CB610183625422002 | F198: 0061018 | G198: 0061018 | I198: 2759.6
A199: 30 | B199: 2018-07-03 | C199: 2018-07-03 | D199: 02/07 KEOLIS RENNES 3625422002 | E199: 02/07 REM.ACH.CB539573625422002 | F199: 0053957 | G199: 0053957 | I199: 1518.88
A200: 30 | B200: 2018-07-03 | C200: 2018-07-03 | D200: 02/07 KEOLIS RENNES 3625422001 | E200: 02/07 REM.ACH.CB546763625422001 | F200: 0054676 | G200: 0054676 | I200: 1473.15
... 120 more rows

Sheet Projet recopie en colonnes
A1: 99 | B1: 2018-05-31
A2: 2.7 | B2: 2018-06-20
A3: -2.7
A4: -99
A5: 2456.8 | B5: 2018-06-22
A407: MONTANT | B407: DATES
A408: 27084.7 | B408: 2018-07-01
A409: 26424.03 | B409: 2018-07-01
A410: 202.85 | B410: 2018-07-01
A411: 36.8 | B411: 2018-07-01
A412: 845.05 | B412: 2018-07-02
A413: 987.4 | B413: 2018-07-02
B414: 2018-07-02
B415: 2018-07-02
A416: 590.7 | B416: 2018-07-02
A417: 762.2 | B417: 2018-07-02
B418: 2018-07-02
A419: 720.4 | B419: 2018-07-02
B420: 2018-07-02
B421: 2018-07-02
B422: 2018-07-02
B423: 2018-07-02
A424: 855.55 | B424: 2018-07-02
A425: 1377.6 | B425: 2018-07-02
B426: 2018-07-02
B427: 2018-07-02
A428: 657.1 | B428: 2018-07-02
A429: 1473.15 | B429: 2018-07-02
B430: 2018-07-02
B431: 2018-07-02
B432: 2018-07-02
B433: 2018-07-02
B434: 2018-07-02
B435: 2018-07-02
B436: 2018-07-02
B437: 2018-07-02
B438: 2018-07-02
B439: 2018-07-02
B440: 2018-07-02
B441: 2018-07-02
B442: 2018-07-02
B443: 2018-07-02
A444: 2854.35 | B444: 2018-07-02
B445: 2018-07-02
B446: 2018-07-02
B447: 2018-07-02
B448: 2018-07-02
B449: 2018-07-02
B450: 2018-07-02
B451: 2018-07-02
B452: 2018-07-02
B453: 2018-07-02
B454: 2018-07-02
B455: 2018-07-02
B456: 2018-07-02
B457: 2018-07-02
B458: 2018-07-02
B459: 2018-07-02
A460: 3980.8 | B460: 2018-07-02
B461: 2018-07-02
B462: 2018-07-02
B463: 2018-07-02
B464: 2018-07-02
B465: 2018-07-02
B466: 2018-07-02
B467: 2018-07-02
B468: 2018-07-02
B469: 2018-07-02
B470: 2018-07-02
B471: 2018-07-02
B472: 2018-07-02
B473: 2018-07-02
B474: 2018-07-02
B475: 2018-07-02
B476: 2018-07-02
B477: 2018-07-02
B478: 2018-07-02
B479: 2018-07-02
B480: 2018-07-02
B481: 2018-07-02
B482: 2018-07-02
B483: 2018-07-02
A484: 569 | B484: 2018-07-02
A485: 2759.6 | B485: 2018-07-02
B486: 2018-07-02
B487: 2018-07-02
B488: 2018-07-02
B489: 2018-07-02
B490: 2018-07-02
B491: 2018-07-02
B492: 2018-07-02
B493: 2018-07-02
B494: 2018-07-02
B495: 2018-07-02
B496: 2018-07-02
B497: 2018-07-02
B498: 2018-07-02
B499: 2018-07-02
B500: 2018-07-02
B501: 2018-07-02
B502: 2018-07-02
B503: 2018-07-02
B504: 2018-07-02
B505: 2018-07-02
B506: 2018-07-02
B507: 2018-07-02
B508: 2018-07-02
B509: 2018-07-02
B510: 2018-07-02
B511: 2018-07-02
B512: 2018-07-02
B513: 2018-07-02
B514: 2018-07-02
B515: 2018-07-02
B516: 2018-07-02
B517: 2018-07-02
B518: 2018-07-02
B519: 2018-07-02
B520: 2018-07-02
B521: 2018-07-02
B522: 2018-07-02
B523: 2018-07-02
B524: 2018-07-02
B525: 2018-07-02
B526: 2018-07-02
B527: 2018-07-02
B528: 2018-07-02
B529: 2018-07-02
B530: 2018-07-02
B531: 2018-07-02
B532: 2018-07-02
B533: 2018-07-02
B534: 2018-07-02
B535: 2018-07-02
A536: 1518.88 | B536: 2018-07-02
A537: 1152.85 | B537: 2018-07-02
B538: 2018-07-02
B539: 2018-07-02
B540: 2018-07-02
B541: 2018-07-02
B542: 2018-07-02
B543: 2018-07-02
B544: 2018-07-02
B545: 2018-07-02
B546: 2018-07-02
B547: 2018-07-02
B548: 2018-07-02
B549: 2018-07-02
B550: 2018-07-02
B551: 2018-07-02
B552: 2018-07-02
B553: 2018-07-02
B554: 2018-07-02
B555: 2018-07-02
B556: 2018-07-02
B557: 2018-07-02
B558: 2018-07-02
B559: 2018-07-02
B560: 2018-07-02
B561: 2018-07-02
B562: 2018-07-02
B563: 2018-07-02
B564: 2018-07-02
B565: 2018-07-02
B566: 2018-07-02
B567: 2018-07-02
B568: 2018-07-02
B569: 2018-07-02
B570: 2018-07-02
B571: 2018-07-02
B572: 2018-07-02
B573: 2018-07-02
B574: 2018-07-02
B575: 2018-07-02
A576: 401.4 | B576: 2018-07-02
B577: 2018-07-02
B578: 2018-07-02
B579: 2018-07-02
B580: 2018-07-02
B581: 2018-07-02
B582: 2018-07-02
B583: 2018-07-02
B584: 2018-07-02
B585: 2018-07-02
B586: 2018-07-02
B587: 2018-07-02
B588: 2018-07-02
B589: 2018-07-02
B590: 2018-07-02
B591: 2018-07-02
B592: 2018-07-02
B593: 2018-07-02
B594: 2018-07-02
B595: 2018-07-02
B596: 2018-07-02
B597: 2018-07-02
B598: 2018-07-02
B599: 2018-07-02
B600: 2018-07-02
B601: 2018-07-02
... 24464 more rows

Sheet FIN JUIN18 (hidden)
A1: MONTANT | B1: COLONNE | C1: DATE
A2: 451.7 | B2: DR | C2: 2018-06-28
B3: DR | C3: 2018-06-28
B4: DR | C4: 2018-06-28
B5: DR | C5: 2018-06-28
A6: 629.25 | B6: DR | C6: 2018-06-28
B7: DR | C7: 2018-06-28
B8: DR | C8: 2018-06-28
B9: DR | C9: 2018-06-28
A10: 242 | B10: DR | C10: 2018-06-28
B11: DR | C11: 2018-06-28
B12: DR | C12: 2018-06-28
B13: DR | C13: 2018-06-28
A14: 451.9 | B14: DR | C14: 2018-06-28
B15: DR | C15: 2018-06-28
B16: DR | C16: 2018-06-28
B17: DR | C17: 2018-06-28
A18: 285.15 | B18: DR | C18: 2018-06-28
B19: DR | C19: 2018-06-28
B20: DR | C20: 2018-06-28
B21: DR | C21: 2018-06-28
A22: 296.6 | B22: DR | C22: 2018-06-28
B23: DR | C23: 2018-06-28
B24: DR | C24: 2018-06-28
B25: DR | C25: 2018-06-28
A26: 787.65 | B26: DR | C26: 2018-06-28
B27: DR | C27: 2018-06-28
B28: DR | C28: 2018-06-28
B29: DR | C29: 2018-06-28
B30: DR | C30: 2018-06-28
B31: DR | C31: 2018-06-28
B32: DR | C32: 2018-06-28
B33: DR | C33: 2018-06-28
A34: 123.15 | B34: DR | C34: 2018-06-28
B35: DR | C35: 2018-06-28
B36: DR | C36: 2018-06-28
B37: DR | C37: 2018-06-28
B38: DR | C38: 2018-06-28
B39: DR | C39: 2018-06-28
B40: DR | C40: 2018-06-28
B41: DR | C41: 2018-06-28
B42: DR | C42: 2018-06-28
B43: DR | C43: 2018-06-28
B44: DR | C44: 2018-06-28
B45: DR | C45: 2018-06-28
B46: DR | C46: 2018-06-28
B47: DR | C47: 2018-06-28
B48: DR | C48: 2018-06-28
B49: DR | C49: 2018-06-28
A50: 399.2 | B50: DR | C50: 2018-06-28
B51: DR | C51: 2018-06-28
B52: DR | C52: 2018-06-28
B53: DR | C53: 2018-06-28
B54: DR | C54: 2018-06-28
B55: DR | C55: 2018-06-28
B56: DR | C56: 2018-06-28
B57: DR | C57: 2018-06-28
B58: DR | C58: 2018-06-28
B59: DR | C59: 2018-06-28
B60: DR | C60: 2018-06-28
B61: DR | C61: 2018-06-28
B62: DR | C62: 2018-06-28
B63: DR | C63: 2018-06-28
B64: DR | C64: 2018-06-28
B65: DR | C65: 2018-06-28
B66: DR | C66: 2018-06-28
B67: DR | C67: 2018-06-28
B68: DR | C68: 2018-06-28
B69: DR | C69: 2018-06-28
B70: DR | C70: 2018-06-28
B71: DR | C71: 2018-06-28
B72: DR | C72: 2018-06-28
B73: DR | C73: 2018-06-28
B74: DR | C74: 2018-06-28
B75: DR | C75: 2018-06-28
B76: DR | C76: 2018-06-28
B77: DR | C77: 2018-06-28
B78: DR | C78: 2018-06-28
B79: DR | C79: 2018-06-28
B80: DR | C80: 2018-06-28
B81: DR | C81: 2018-06-28
B82: DR | C82: 2018-06-28
B83: DR | C83: 2018-06-28
B84: DR | C84: 2018-06-28
B85: DR | C85: 2018-06-28
A86: 51.3 | B86: DR | C86: 2018-06-28
B87: DR | C87: 2018-06-28
B88: DR | C88: 2018-06-28
B89: DR | C89: 2018-06-28
B90: DR | C90: 2018-06-28
B91: DR | C91: 2018-06-28
B92: DR | C92: 2018-06-28
B93: DR | C93: 2018-06-28
B94: DR | C94: 2018-06-28
B95: DR | C95: 2018-06-28
B96: DR | C96: 2018-06-28
B97: DR | C97: 2018-06-28
B98: DR | C98: 2018-06-28
B99: DR | C99: 2018-06-28
B100: DR | C100: 2018-06-28
B101: DR | C101: 2018-06-28
B102: DR | C102: 2018-06-28
B103: DR | C103: 2018-06-28
B104: DR | C104: 2018-06-28
B105: DR | C105: 2018-06-28
B106: DR | C106: 2018-06-28
B107: DR | C107: 2018-06-28
B108: DR | C108: 2018-06-28
B109: DR | C109: 2018-06-28
B110: DR | C110: 2018-06-28
B111: DR | C111: 2018-06-28
B112: DR | C112: 2018-06-28
B113: DR | C113: 2018-06-28
B114: DR | C114: 2018-06-28
B115: DR | C115: 2018-06-28
B116: DR | C116: 2018-06-28
B117: DR | C117: 2018-06-28
A118: 793.45 | B118: DR | C118: 2018-06-28
B119: DR | C119: 2018-06-28
B120: DR | C120: 2018-06-28
B121: DR | C121: 2018-06-28
B122: DR | C122: 2018-06-28
B123: DR | C123: 2018-06-28
B124: DR | C124: 2018-06-28
B125: DR | C125: 2018-06-28
B126: DR | C126: 2018-06-28
B127: DR | C127: 2018-06-28
B128: DR | C128: 2018-06-28
B129: DR | C129: 2018-06-28
B130: DR | C130: 2018-06-28
B131: DR | C131: 2018-06-28
B132: DR | C132: 2018-06-28
B133: DR | C133: 2018-06-28
B134: DR | C134: 2018-06-28
B135: DR | C135: 2018-06-28
B136: DR | C136: 2018-06-28
B137: DR | C137: 2018-06-28
B138: DR | C138: 2018-06-28
B139: DR | C139: 2018-06-28
B140: DR | C140: 2018-06-28
B141: DR | C141: 2018-06-28
B142: DR | C142: 2018-06-28
B143: DR | C143: 2018-06-28
B144: DR | C144: 2018-06-28
B145: DR | C145: 2018-06-28
B146: DR | C146: 2018-06-28
B147: DR | C147: 2018-06-28
B148: DR | C148: 2018-06-28
B149: DR | C149: 2018-06-28
B150: DR | C150: 2018-06-28
B151: DR | C151: 2018-06-28
B152: DR | C152: 2018-06-28
B153: DR | C153: 2018-06-28
B154: DR | C154: 2018-06-28
B155: DR | C155: 2018-06-28
B156: DR | C156: 2018-06-28
B157: DR | C157: 2018-06-28
B158: DR | C158: 2018-06-28
B159: DR | C159: 2018-06-28
B160: DR | C160: 2018-06-28
B161: DR | C161: 2018-06-28
B162: DR | C162: 2018-06-28
B163: DR | C163: 2018-06-28
B164: DR | C164: 2018-06-28
B165: DR | C165: 2018-06-28
B166: DR | C166: 2018-06-28
B167: DR | C167: 2018-06-28
B168: DR | C168: 2018-06-28
B169: DR | C169: 2018-06-28
B170: DR | C170: 2018-06-28
B171: DR | C171: 2018-06-28
B172: DR | C172: 2018-06-28
B173: DR | C173: 2018-06-28
B174: DR | C174: 2018-06-28
B175: DR | C175: 2018-06-28
B176: DR | C176: 2018-06-28
B177: DR | C177: 2018-06-28
B178: DR | C178: 2018-06-28
B179: DR | C179: 2018-06-28
B180: DR | C180: 2018-06-28
B181: DR | C181: 2018-06-28
B182: DR | C182: 2018-06-28
B183: DR | C183: 2018-06-28
B184: DR | C184: 2018-06-28
B185: DR | C185: 2018-06-28
B186: DR | C186: 2018-06-28
B187: DR | C187: 2018-06-28
B188: DR | C188: 2018-06-28
B189: DR | C189: 2018-06-28
B190: DR | C190: 2018-06-28
B191: DR | C191: 2018-06-28
B192: DR | C192: 2018-06-28
B193: DR | C193: 2018-06-28
B194: DR | C194: 2018-06-28
B195: DR | C195: 2018-06-28
B196: DR | C196: 2018-06-28
B197: DR | C197: 2018-06-28
B198: DR | C198: 2018-06-28
B199: DR | C199: 2018-06-28
B200: DR | C200: 2018-06-28
... 1610 more rows

Sheet JUIN+JUILL18 (1) (hidden)
A2: 99 | B2: annulé sur Juillet | C2: 2018-05-31
A3: 2.7 | B3: annulé sur Juillet | C3: 2018-06-20
A4: -2.7 | B4: Suppression des 99€, ajouter sur la régul de juin car ce chèque de mai était compris dans la formule de calcul contrairement à ce qui a été écrit sur le rappros de mai
A5: -99 | B5: Suppression des 99€, ajouter sur la régul de juin car ce chèque de mai était compris dans la formule de calcul contrairement à ce qui a été écrit sur le rappros de mai
A6: montant | B6: COLONNE | C6: DATES
A8: -3 | B8: J | C8: 2018-07-02
A9: 0 | B9: V | C9: 2018-07-05
A10: 0.05 | B10: Q | C10: 2018-07-03
A17: 0.13 | B17: DW | C17: 2018-06-29
A18: 0.2 | B18: M | C18: 2018-07-02
A21: 0.3 | B21: EA | C21: 2018-06-30
A22: 0.3 | B22: M | C22: 2018-07-02
A23: 0.3 | B23: M | C23: 2018-07-02
A26: 0.35 | B26: M | C26: 2018-07-02
A27: 0.35 | B27: Q | C27: 2018-07-03
A29: 0.4 | B29: DS | C29: 2018-06-28
A33: 0.6 | B33: Y | C33: 2018-07-05
A35: 0.65 | B35: EA | C35: 2018-06-30
A36: 0.7 | B36: Q | C36: 2018-07-03
A46: 0.8 | B46: M | C46: 2018-07-02
A56: 0.95 | B56: Y | C56: 2018-07-05
A61: 1.1 | B61: Q | C61: 2018-07-03
A64: 1.15 | B64: Q | C64: 2018-07-03
A72: 1.4 | B72: DW | C72: 2018-06-29
A78: 1.5 | B78: DX | C78: 2018-06-30
A79: 1.5 | B79: W | C79: 2018-07-05
A95: 1.65 | B95: EA | C95: 2018-06-30
A96: 1.7 | B96: Q | C96: 2018-07-03
A97: 1.7 | B97: U | C97: 2018-07-04
A101: 1.8 | B101: DS | C101: 2018-06-28
A102: 1.8 | B102: Y | C102: 2018-07-05
A113: 2.05 | B113: M | C113: 2018-07-02
A115: 2.1 | B115: Y | C115: 2018-07-05
A121: 2.2 | B121: U | C121: 2018-07-04
A132: 2.35 | B132: Y | C132: 2018-07-05
A135: 2.4 | B135: M | C135: 2018-07-02
A148: 2.55 | B148: Q | C148: 2018-07-03
A153: 2.65 | B153: DW | C153: 2018-06-29
A154: 2.7 | B154: Y | C154: 2018-07-05
A158: 2.75 | B158: Q | C158: 2018-07-03
A162: 2.85 | B162: DS | C162: 2018-06-28
A163: 2.9 | B163: Q | C163: 2018-07-03
A171: 2.95 | B171: Y | C171: 2018-07-05
A172: 3 | B172: DT | C172: 2018-06-29
A173: 3 | B173: DW | C173: 2018-06-29
A174: 3 | B174: M | C174: 2018-07-02
A175: 3 | B175: M | C175: 2018-07-02
A176: 3 | B176: N | C176: 2018-07-03
A177: 3 | B177: Q | C177: 2018-07-03
A178: 3 | B178: U | C178: 2018-07-04
A201: 3.3 | B201: M | C201: 2018-07-02
A207: 3.35 | B207: DW | C207: 2018-06-29
A211: 3.5 | B211: DS | C211: 2018-06-28
A220: 3.65 | B220: Q | C220: 2018-07-03
A225: 3.8 | B225: U | C225: 2018-07-04
A231: 3.9 | B231: U | C231: 2018-07-04
A235: 3.95 | B235: EA | C235: 2018-06-30
A244: 4.1 | B244: DW | C244: 2018-06-29
A245: 4.1 | B245: W | C245: 2018-07-05
A252: 4.2 | B252: DS | C252: 2018-06-28
A253: 4.2 | B253: DW | C253: 2018-06-29
A254: 4.2 | B254: EA | C254: 2018-06-30
A255: 4.2 | B255: EA | C255: 2018-06-30
A260: 4.3 | B260: Q | C260: 2018-07-03
A262: 4.35 | B262: U | C262: 2018-07-04
A263: 4.35 | B263: U | C263: 2018-07-04
A264: 4.4 | B264: DS | C264: 2018-06-28
A265: 4.4 | B265: Q | C265: 2018-07-03
A266: 4.4 | B266: U | C266: 2018-07-04
A279: 4.6 | B279: T | C279: 2018-07-04
A286: 4.65 | B286: U | C286: 2018-07-04
A290: 4.7 | B290: Y | C290: 2018-07-05
A295: 4.75 | B295: U | C295: 2018-07-04
A298: 4.8 | B298: DS | C298: 2018-06-28
A299: 4.8 | B299: Y | C299: 2018-07-05
A310: 5 | B310: K | C310: 2018-07-02
A311: 5 | B311: O | C311: 2018-07-03
A312: 5 | B312: S | C312: 2018-07-04
A313: 5 | B313: W | C313: 2018-07-05
A328: 5.04 | B328: Y | C328: 2018-07-05
A329: 5.1 | B329: U | C329: 2018-07-04
A336: 5.45 | B336: EA | C336: 2018-06-30
A337: 5.5 | B337: DW | C337: 2018-06-29
A340: 5.8 | B340: W | C340: 2018-07-05
A343: 6 | B343: DS | C343: 2018-06-28
A367: 7.5 | B367: DY | C367: 2018-06-30
A380: 8 | B380: EA | C380: 2018-06-30
A381: 8 | B381: K | C381: 2018-07-02
A382: 8 | B382: O | C382: 2018-07-03
A383: 8 | B383: W | C383: 2018-07-05
A414: 8.15 | B414: DS | C414: 2018-06-28
A415: 8.2 | B415: Y | C415: 2018-07-05
A423: 8.35 | B423: DS | C423: 2018-06-28
A426: 9 | B426: DS | C426: 2018-06-28
A427: 9 | B427: S | C427: 2018-07-04
A436: 9.75 | B436: DS | C436: 2018-06-28
A439: 10 | B439: DY | C439: 2018-06-30
A440: 10 | B440: S | C440: 2018-07-04
A462: 12.5 | B462: DS | C462: 2018-06-28
A463: 12.6 | B463: W | C463: 2018-07-05
A466: 13.05 | B466: DU | C466: 2018-06-29
A467: 13.05 | B467: S | C467: 2018-07-04
A470: 13.5 | B470: O | C470: 2018-07-03
A510: 14.5 | B510: DY | C510: 2018-06-30
A511: 14.5 | B511: R | C511: 2018-07-04
A512: 14.5 | B512: S | C512: 2018-07-04
A513: 14.5 | B513: S | C513: 2018-07-04
A552: 15.3 | B552: W | C552: 2018-07-05
A553: 15.4 | B553: DY | C553: 2018-06-30
A556: 16 | B556: S | C556: 2018-07-04
A566: 16.35 | B566: DY | C566: 2018-06-30
A567: 16.4 | B567: O | C567: 2018-07-03
A576: 17.45 | B576: DY | C576: 2018-06-30
A581: 17.8 | B581: K | C581: 2018-07-02
A583: 17.9 | B583: R | C583: 2018-07-04
A596: 18.4 | B596: O | C596: 2018-07-03
A597: 18.4 | B597: V | C597: 2018-07-05
A609: 19.25 | B609: DU | C609: 2018-06-29
A610: 19.4 | B610: O | C610: 2018-07-03
A613: 20 | B613: DU | C613: 2018-06-29
A614: 20 | B614: K | C614: 2018-07-02
A615: 20 | B615: Y | C615: 2018-07-05
A626: 20.05 | B626: W | C626: 2018-07-05
A633: 21.5 | B633: S | C633: 2018-07-04
A634: 21.5 | B634: W | C634: 2018-07-05
A646: 21.95 | B646: DY | C646: 2018-06-30
A648: 22.1 | B648: K | C648: 2018-07-02
A649: 22.2 | B649: DU | C649: 2018-06-29
A654: 22.65 | B654: DW | C654: 2018-06-29
A655: 22.7 | B655: O | C655: 2018-07-03
A661: 23.4 | B661: DU | C661: 2018-06-29
A673: 24.45 | B673: DY | C673: 2018-06-30
A676: 25 | B676: DU | C676: 2018-06-29
A682: 25.2 | B682: K | C682: 2018-07-02
A685: 25.9 | B685: K | C685: 2018-07-02
A688: 26 | B688: DS | C688: 2018-06-28
A690: 26.1 | B690: DU | C690: 2018-06-29
A695: 27 | B695: W | C695: 2018-07-05
A702: 27.1 | B702: S | C702: 2018-07-04
A710: 28.75 | B710: K | C710: 2018-07-02
A713: 29 | B713: DU | C713: 2018-06-29
A729: 29.8 | B729: V | C729: 2018-07-05
A733: 30 | B733: DS | C733: 2018-06-28
A734: 30 | B734: W | C734: 2018-07-05
A747: 30.55 | B747: DU | C747: 2018-06-29
A757: 31.4 | B757: K | C757: 2018-07-02
A761: 31.45 | B761: Q | C761: 2018-07-03
A765: 32.2 | B765: DU | C765: 2018-06-29
A769: 32.6 | B769: DX | C769: 2018-06-30
A770: 32.6 | B770: J | C770: 2018-07-02
A779: 34.5 | B779: DR | C779: 2018-06-28
A780: 34.5 | B780: DX | C780: 2018-06-30
A781: 34.5 | B781: J | C781: 2018-07-02
A782: 34.5 | B782: J | C782: 2018-07-02
A783: 34.5 | B783: R | C783: 2018-07-04
A797: 35 | B797: K | C797: 2018-07-02
A806: 35.95 | B806: O | C806: 2018-07-03
A807: 36 | B807: O | C807: 2018-07-03
A810: 36.55 | B810: S | C810: 2018-07-04
A813: 36.8 | B813: F | C813: 2018-07-01
A829: 38 | B829: M | C829: 2018-07-02
A835: 39 | B835: DY | C835: 2018-06-30
A837: 39.05 | B837: S | C837: 2018-07-04
A840: 39.5 | B840: Y | C840: 2018-07-05
A854: 40.95 | B854: K | C854: 2018-07-02
A859: 41.9 | B859: O | C859: 2018-07-03
A874: 45 | B874: S | C874: 2018-07-04
A891: 46.4 | B891: K | C891: 2018-07-02
A892: 46.5 | B892: X | C892: 2018-07-05
A907: 49.5 | B907: W | C907: 2018-07-05
A908: 49.65 | B908: DY | C908: 2018-06-30
A909: 50 | B909: DS | C909: 2018-06-28
A910: 50 | B910: Y | C910: 2018-07-05
A926: 50.9 | B926: K | C926: 2018-07-02
A930: 51.3 | B930: DR | C930: 2018-06-28
A931: 51.3 | B931: L | C931: 2018-07-02
A932: 51.3 | B932: T | C932: 2018-07-04
A939: 51.5 | B939: DX | C939: 2018-06-30
A940: 51.5 | B940: N | C940: 2018-07-03
A941: 51.5 | B941: V | C941: 2018-07-05
A954: 52 | B954: V | C954: 2018-07-05
A958: 52.6 | B958: DU | C958: 2018-06-29
A969: 55 | B969: Y | C969: 2018-07-05
A974: 55.1 | B974: DU | C974: 2018-06-29
A992: 60 | B992: Y | C992: 2018-07-05
A1003: 62.95 | B1003: O | C1003: 2018-07-03
A1006: 63.5 | B1006: DS | C1006: 2018-06-28
A1009: 64.35 | B1009: DX | C1009: 2018-06-30
A1012: 64.8 | B1012: L | C1012: 2018-07-02
A1015: 65 | B1015: Y | C1015: 2018-07-05
A1027: 66.65 | B1027: DU | C1027: 2018-06-29
A1028: 66.8 | B1028: R | C1028: 2018-07-04
A1031: 68 | B1031: EA | C1031: 2018-06-30
A1033: 68.6 | B1033: DX | C1033: 2018-06-30
A1034: 69 | B1034: DX | C1034: 2018-06-30
A1035: 69 | B1035: N | C1035: 2018-07-03
A1048: 70 | B1048: DS | C1048: 2018-06-28
A1049: 70 | B1049: EA | C1049: 2018-06-30
A1063: 73.3 | B1063: J | C1063: 2018-07-02
A1064: 73.5 | B1064: T | C1064: 2018-07-04
... 360 more rows
